Workbook

Sheet Sheet1 (hidden)
A1: № | B1: 列 | C1: Ｒ Ｍ 標 準 | F1: 日 新 バ ー ジ ョ ン
C2: 項 目 名 称 | D2: 項 目 名 | E2: 分類 | F2: 項 目 名 称 | G2: 項 目 名 | H2: 分類
A3: 1 | B3: A | C3: 伝票日付 | D3: BLDAT | E3: ヘッダ | F3: 伝票日付 | G3: BLDAT | H3: ヘッダ
A4: 2 | B4: B | C4: 会社ｺｰﾄﾞ | D4: BUKRS | F4: 伝票タイプ | G4: BUKRS
A5: 3 | B5: C | C5: 転記日付 | D5: BUDAT | F5: 会社コード | G5: BUDAT
A6: 4 | B6: D | C6: 伝票ﾀｲﾌﾟ | D6: BLART | F6: 転記日付 | G6: BLART
A7: 5 | B7: E | C7: 通貨ｺｰﾄﾞ | D7: WAERS | F7: 通貨コード | G7: WAERS
A8: 6 | B8: F | C8: ヘッダテキスト | D8: BKTXT | F8: 換算レート | G8: KURSF
A9: 7 | B9: G | C9: 参照伝票番号 | D9: XBLNR | F9: 参照伝票番号 | G9: XBLNR
A10: 8 | B10: H | C10: 税自動計算 | D10: XMWST | F10: ヘッダテキスト | G10: BKTXT
A11: 9 | B11: I | C11: 転記ｷｰ | D11: NEWBS | E11: 明 細 | F11: 税自動計算 | G11: XMWST
A12: 10 | B12: J | C12: 勘定ｺｰﾄﾞ | D12: NEWKO | F12: 転記キー | G12: NEWBS | H12: 明 細
A13: 11 | B13: K | C13: 特殊GL | D13: NEWUM | F13: 勘定コード | G13: NEWKO
A14: 12 | B14: L | C14: 金額 | D14: WRBTR | F14: 特殊GL | G14: NEWUM
A15: 13 | B15: M | C15: 税ｺｰﾄﾞ | D15: MWSKZ | F15: 金額 | G15: WRBTR
A16: 14 | B16: N | C16: ｿｰﾄｷｰ | D16: ZUONR | F16: 国内通貨額 | G16: DMBTR
A17: 15 | B17: O | C17: 明細ﾃｷｽﾄ | D17: SGTXT | F17: 税コード | G17: MWSKZ
A18: 16 | B18: P | C18: 起算日 | D18: VALUT | F18: ソートキー | G18: ZUONR
A19: 17 | B19: Q | C19: 期日 | D19: ZFBDT | F19: 明細テキスト | G19: SGTXT
A20: 18 | B20: R | C20: 振出日 | D20: WDATE | F20: 起算日 | G20: VALUT
A21: 19 | B21: S | C21: 支払方法 | D21: ZLSCH | F21: 期日 | G21: ZFBDT
A22: 20 | B22: T | C22: 支払保留 | D22: ZLSPR | F22: 振出日 | G22: WDATE
A23: 21 | B23: U | C23: 数量 | D23: MENGE | F23: 支払方法 | G23: ZLSCH
A24: 22 | B24: V | C24: 数量単位 | D24: MEINS | F24: 支払保留 | G24: ZLSPR
A25: 23 | B25: W | C25: 事業領域 | D25: GSBER | F25: 取引先銀行 | G25: BVTYP
A26: 24 | B26: X | C26: 原価ｾﾝﾀ | D26: KOSTL | F26: 取引銀行 | G26: HBKID
A27: 25 | B27: Y | C27: 利益ｾﾝﾀ | D27: PRCTR | F27: 中央銀行コード | G27: LZBKZ
A28: 26 | B28: Z | C28: 指図書 | D28: AUFNR | F28: 数量 | G28: MENGE
A29: 27 | B29: AA | C29: ＷＢＳ | D29: PS_PSP_PNR | F29: 数量単位 | G29: MEINS
A30: 28 | B30: AB | C30: 得意先ｺｰﾄﾞ | D30: RKEAK-FIELD1 | F30: 事業領域 | G30: GSBER
A31: 29 | B31: AC | C31: 品目ｺｰﾄﾞ | D31: RKEAK-FIELD2 | F31: 原価センタ | G31: KOSTL
A32: 30 | B32: AD | C32: 販売組織 | D32: RKEAK-FIELD6 | F32: 利益センタ | G32: PRCTR
A33: 31 | B33: AE | C33: 流通ﾁｬﾈﾙ | D33: RKEAK-FIELD7 | F33: 指図書 | G33: AUFNR
A34: 32 | B34: AF | C34: 製品部門 | D34: RKEAK-FIELD8 | F34: ＷＢＳ | G34: PS_PSP_PNR
A35: 33 | B35: AG | C35: 品目ｸﾞﾙｰﾌﾟ | D35: RKEAK-FIELD9 | F35: 得意先コード | G35: RKEAK-FIELD1
A36: 34 | B36: AH | C36: 営業所 | D36: RKEAK-FIELD2 | F36: 品目コード | G36: RKEAK-FIELD2
A37: 35 | B37: AI | C37: 営業グループ | D37: RKEAK-FIELD3 | F37: 販売組織 | G37: RKEAK-FIELD6
A38: 36 | B38: AJ | C38: 需要家 | D38: RKEAK-FIELD2 | F38: 流通チャネル | G38: RKEAK-FIELD7
A39: 37 | B39: AK | C39: 研究室/設計室 | D39: RKEAK-FIELD3 | F39: 製品部門 | G39: RKEAK-FIELD8
A40: 38 | B40: AL | F40: 品目グループ | G40: RKEAK-FIELD9
A41: 39 | B41: AM | F41: 営業所 | G41: RKEAK-FIELD2
A42: 40 | B42: AN | F42: 営業グループ | G42: RKEAK-FIELD3
A43: 41 | B43: AO | F43: 需要家 | G43: RKEAK-FIELD2

Sheet 出納日報
B3: 2023.06.30
A5: コード | B5: 銀行支店名 | C5: 預金種目 | D5: 口座番号 | E5: 前日出納残 | F5: 入金 | J5: 出金 | N5: 当日出納残 | O5: 仮伝支払 | P5: 当日資金残 | Q5: 他店券発行
F6: 当日入金 | G6: 他店資金化 | H6: 資金移動 | I6: 未達 | J6: 当日出金 | K6: 引落 | L6: 資金移動 | M6: 未達
A8: 100 | B8: 三菱UFJ日比谷#111050 | C8: 当座 | D8: 111618 | E8: 23280 | F8: =当座明細!F7 -> 1678587 | G8: =当座明細!G7 -> 0 | H8: =当座明細!H7 -> 0 | I8: =当座明細!I7 -> 0 | J8: =当座明細!K7 -> 0 | K8: =当座明細!N7 -> 0 | L8: =当座明細!L7 -> 1680000 | M8: =当座明細!O7 -> 0 | N8: =E8+F8+H8-J8-L8 -> 21867 | O8: =当座明細!P7 -> 0 | P8: =E8+F8+G8-I8-J8-O8+M8+H8-L8 -> 21867 | Q8: =当座明細!Q7 -> 0
A9: 170 | B9: 三菱UFJ東京営業部#111010 | C9: 当座 | D9: 775173 | E9: 0 | F9: =当座明細!F57 -> 406912999 | G9: =当座明細!G57 -> 0 | H9: =当座明細!H57 -> 1080485135 | I9: =当座明細!I57 -> 0 | J9: =当座明細!K57 -> 1479148134 | K9: =当座明細!N57 -> 0 | L9: =当座明細!L57 -> 8250000 | M9: =当座明細!O57 -> 0 | N9: =E9+F9+H9-J9-L9 -> 0 | O9: =当座明細!P57 -> 0 | P9: =E9+F9+G9-I9-J9-O9+M9+H9-L9 -> 0 | Q9: =当座明細!Q57 -> 0
A10: 171 | B10: 三菱UFJ東京営業部B#111060 | C10: 当座 | D10: 775181 | E10: 0 | F10: =当座明細!F61 -> 0 | G10: =当座明細!G61 -> 0 | H10: =当座明細!H61 -> 0 | I10: =当座明細!I61 -> 0 | J10: =当座明細!K61 -> 0 | K10: =当座明細!N61 -> 0 | L10: =当座明細!L61 -> 0 | M10: =当座明細!O61 -> 0 | N10: 0 | O10: =当座明細!P61 -> 0 | P10: 0 | Q10: =当座明細!Q61 -> 0
A11: 230 | B11: 横浜東京#111020 | C11: 当座 | D11: 127004 | E11: 15375900 | F11: =当座明細!F66 -> 0 | G11: =当座明細!G66 -> 0 | H11: =当座明細!H66 -> 8250000 | I11: =当座明細!I66 -> 0 | J11: =当座明細!K66 -> 3542048 | K11: =当座明細!N66 -> 0 | L11: =当座明細!L66 -> 0 | M11: =当座明細!O66 -> 0 | N11: 20083852 | O11: =当座明細!P66 -> 0 | P11: 20083852 | Q11: =当座明細!Q66 -> 0
A12: 450 | B12: 三菱UFJ信託本店 | C12: 当座 | D12: 1073895 | E12: 0 | F12: =当座明細!F70 -> 0 | G12: =当座明細!G70 -> 0 | H12: =当座明細!H70 -> 0 | I12: =当座明細!I70 -> 0 | J12: =当座明細!K70 -> 0 | K12: =当座明細!N70 -> 0 | L12: =当座明細!L70 -> 0 | M12: =当座明細!O70 -> 0 | N12: 0 | O12: =当座明細!P70 -> 0 | P12: 0 | Q12: =当座明細!Q70 -> 0 | R12: 2019-02-27 | S12: 解約
A13: 800 | B13: 三井住友日比谷 | C13: 当座 | D13: 5058573 | E13: 0 | F13: =当座明細!F74 -> 0 | G13: =当座明細!G74 -> 0 | H13: =当座明細!H74 -> 0 | I13: =当座明細!I74 -> 0 | J13: =当座明細!K74 -> 0 | K13: =当座明細!N74 -> 0 | L13: =当座明細!L74 -> 0 | M13: =当座明細!O74 -> 0 | N13: 0 | O13: =当座明細!P74 -> 0 | P13: 0 | Q13: =当座明細!Q74 -> 0 | R13: 2015-07-01 | S13: 解約
A14: 890 | B14: 三井住友丸ノ内#111030 | C14: 当座 | D14: 6550530 | E14: 18928624 | F14: =当座明細!F92 -> 0 | G14: =当座明細!G92 -> 0 | H14: =当座明細!H92 -> 0 | I14: =当座明細!I92 -> 0 | J14: =当座明細!K92 -> 3530142 | K14: =当座明細!N92 -> 0 | L14: =当座明細!L92 -> 0 | M14: =当座明細!O92 -> 0 | N14: 15398482 | O14: =当座明細!P92 -> 0 | P14: 15398482 | Q14: =当座明細!Q92 -> 0
A15: 891 | B15: 三井住友丸ノ内Ｂ（関東第二）#111040 | C15: 当座 | D15: 6550548 | E15: 92970 | F15: =当座明細!F97 -> 69029112 | G15: =当座明細!G97 -> 0 | H15: =当座明細!H97 -> 0 | I15: =当座明細!I97 -> 0 | J15: =当座明細!K97 -> 0 | K15: =当座明細!N97 -> 0 | L15: =当座明細!L97 -> 66510000 | M15: =当座明細!O97 -> 0 | N15: 2612082 | O15: =当座明細!P97 -> 0 | P15: 2612082 | Q15: =当座明細!Q97 -> 0
A16: 892 | B16: 三井住友丸ノ内Ｃ | C16: 当座 | D16: 6550556 | E16: 0 | F16: =当座明細!F101 -> 0 | G16: =当座明細!G101 -> 0 | H16: =当座明細!H101 -> 0 | I16: =当座明細!I101 -> 0 | J16: =当座明細!K101 -> 0 | K16: =当座明細!N101 -> 0 | L16: =当座明細!L101 -> 0 | M16: =当座明細!O101 -> 0 | N16: 0 | O16: =当座明細!P101 -> 0 | P16: 0 | Q16: =当座明細!Q101 -> 0 | R16: 2015-07-29 | S16: 解約
B18: 当座預金残高 | E18: 34420774 | F18: =SUM(F8:F16) -> 477620698 | G18: 0 | H18: 1088735135 | I18: 0 | J18: 1486220324 | K18: 0 | L18: 76440000 | M18: 0 | N18: 38116283 | O18: 0 | P18: 38116283 | Q18: 0
A20: 110 | B20: 三菱UFJ横浜中央#111201 | C20: 普通 | D20: 23938 | E20: 0 | F20: =普通明細!F6 -> 0 | G20: =普通明細!G6 -> 0 | H20: =普通明細!H6 -> 0 | I20: =普通明細!I6 -> 0 | J20: =普通明細!K6 -> 0 | K20: =普通明細!L6 -> 0 | L20: =普通明細!M6 -> 0 | M20: =普通明細!N6 -> 0 | N20: =E20+F20+H20-J20-L20 -> 0 | O20: =普通明細!O6 -> 0 | P20: =E20+F20+G20-I20-J20-O20+Q20+M20+H20-L20 -> 0 | R20: 2022-05-01 | S20: 解約
A21: 121 | B21: 三菱UFJ大阪営業部#111202 | C21: 普通 | D21: 77361 | E21: 29505 | F21: =普通明細!F7 -> 0 | G21: =普通明細!G10 -> 0 | H21: =普通明細!H10 -> 0 | I21: =普通明細!I10 -> 0 | J21: =普通明細!K10 -> 0 | K21: =普通明細!L10 -> 0 | L21: =普通明細!M10 -> 0 | M21: =普通明細!N10 -> 0 | N21: 29505 | O21: =普通明細!O10 -> 0 | P21: =E21+F21+G21-I21-J21-O21+Q21+M21+H21-L21 -> 29505
A22: 129 | B22: 三菱UFJ京都駅前 | C22: 普通 | D22: 4563066 | E22: 0 | F22: =普通明細!F14 -> 0 | G22: =普通明細!G14 -> 0 | H22: =普通明細!H14 -> 0 | I22: =普通明細!I14 -> 0 | J22: =普通明細!K14 -> 0 | K22: =普通明細!L14 -> 0 | L22: =普通明細!M14 -> 0 | M22: =普通明細!N14 -> 0 | N22: 0 | O22: =普通明細!O14 -> 0 | P22: 0 | R22: 2018-08-24 | S22: 解約
A23: 151 | B23: 三菱UFJ名古屋営業部#111204 | C23: 普通 | D23: 4801778 | E23: 0 | F23: =普通明細!F18 -> 0 | G23: =普通明細!G18 -> 0 | H23: =普通明細!H18 -> 0 | I23: =普通明細!I18 -> 0 | J23: =普通明細!K18 -> 0 | K23: =普通明細!L18 -> 0 | L23: =普通明細!M18 -> 0 | M23: =普通明細!N18 -> 0 | N23: 0 | O23: =普通明細!O18 -> 0 | P23: 0
A24: 170 | B24: 三菱UFJ東京営業部#111012 | C24: 普通 | D24: 1722828 | E24: 740000 | F24: =普通明細!F39 -> 387007 | G24: =普通明細!G39 -> 0 | H24: =普通明細!H39 -> 44530000 | I24: =普通明細!I39 -> 0 | J24: =普通明細!K39 -> 0 | K24: =普通明細!L39 -> 0 | L24: =普通明細!M39 -> 45600000 | M24: =普通明細!N39 -> 0 | N24: 57007 | O24: =普通明細!O39 -> 0 | P24: 57007
A25: 177 | B25: 三菱UFJ東京営業部（汐留） | C25: 普通 | D25: 1803230 | E25: 0 | F25: =普通明細!F43 -> 0 | G25: =普通明細!G43 -> 0 | H25: =普通明細!H43 -> 0 | I25: =普通明細!I43 -> 0 | J25: =普通明細!K43 -> 0 | K25: =普通明細!L43 -> 0 | L25: =普通明細!M43 -> 0 | M25: =普通明細!N43 -> 0 | N25: 0 | O25: =普通明細!O43 -> 0 | P25: 0 | R25: 2018-08-24 | S25: 解約
A26: 179 | B26: 三菱UFJ東京為替集中#111102 | C26: 普通 | D26: 1739665 | E26: 4759356 | F26: =普通明細!F49 -> 910722159 | G26: =普通明細!G49 -> 0 | H26: =普通明細!H49 -> 0 | I26: =普通明細!I49 -> 0 | J26: =普通明細!K49 -> 0 | K26: =普通明細!L49 -> 0 | L26: =普通明細!M49 -> 910275135 | M26: =普通明細!N49 -> 0 | N26: 5206380 | O26: =普通明細!O49 -> 0 | P26: 5206380
A27: 210 | B27: 横浜本店#111206 | C27: 普通 | D27: 78366 | E27: 459033 | F27: =普通明細!F53 -> 22586760 | G27: =普通明細!G53 -> 0 | H27: =普通明細!H53 -> 0 | I27: =普通明細!I53 -> 0 | J27: =普通明細!K53 -> 0 | K27: =普通明細!L53 -> 0 | L27: =普通明細!M53 -> 23000000 | M27: =普通明細!N53 -> 0 | N27: 45793 | O27: =普通明細!O53 -> 0 | P27: 45793
A28: 230 | B28: 横浜東京#111022 | C28: 普通 | D28: 1404938 | E28: 102545 | F28: =普通明細!F58 -> 0 | G28: =普通明細!G58 -> 0 | H28: =普通明細!H58 -> 0 | I28: =普通明細!I58 -> 0 | J28: =普通明細!K58 -> 0 | K28: =普通明細!L58 -> 0 | L28: =普通明細!M58 -> 0 | M28: =普通明細!N58 -> 0 | N28: 102545 | O28: =普通明細!O58 -> 0 | P28: 102545
A29: 1310 | B29: 三菱UFJ東京営業部CASIO | C29: 普通 | D29: 1080754 | E29: 0 | F29: =普通明細!F62 -> 0 | G29: =普通明細!G62 -> 0 | H29: =普通明細!H62 -> 0 | I29: =普通明細!I62 -> 0 | J29: =普通明細!K62 -> 0 | K29: =普通明細!L62 -> 0 | L29: =普通明細!M62 -> 0 | M29: =普通明細!N62 -> 0 | N29: 0 | O29: =普通明細!O62 -> 0 | P29: 0
A30: 320 | B30: 三菱UFJ静岡 | C30: 普通 | D30: 318580 | E30: 0 | F30: =普通明細!F66 -> 0 | G30: =普通明細!G66 -> 0 | H30: =普通明細!H66 -> 0 | I30: =普通明細!I66 -> 0 | J30: =普通明細!K66 -> 0 | K30: =普通明細!L66 -> 0 | L30: =普通明細!M66 -> 0 | M30: =普通明細!N66 -> 0 | N30: 0 | O30: =普通明細!O66 -> 0 | P30: 0 | R30: 2015-07-13 | S30: 解約
A31: 340 | B31: 三菱UF青山通#111209 | C31: 普通 | D31: 1219312 | E31: 24976 | F31: =普通明細!F71 -> 16500 | G31: =普通明細!G71 -> 0 | H31: =普通明細!H71 -> 0 | I31: =普通明細!I71 -> 0 | J31: =普通明細!K71 -> 0 | K31: =普通明細!L71 -> 0 | L31: =普通明細!M71 -> 20000 | M31: =普通明細!N71 -> 0 | N31: 21476 | O31: =普通明細!O71 -> 0 | P31: 21476
A32: 450 | B32: 三菱UFJ信託本店 | C32: 普通 | D32: 1203996 | E32: 0 | F32: =普通明細!F75 -> 0 | G32: =普通明細!G75 -> 0 | H32: =普通明細!H75 -> 0 | I32: =普通明細!I75 -> 0 | J32: =普通明細!K75 -> 0 | K32: =普通明細!L75 -> 0 | L32: =普通明細!M75 -> 0 | M32: =普通明細!N75 -> 0 | N32: 0 | O32: =普通明細!O75 -> 0 | P32: 0 | R32: 2019-03-11 | S32: 解約
A33: 451 | B33: 三菱UFJ東京営業部（ﾘﾊﾞﾃｨｰ） | C33: 普通 | D33: 603115 | E33: 0 | F33: =普通明細!F79 -> 0 | G33: =普通明細!G79 -> 0 | H33: =普通明細!H79 -> 0 | I33: =普通明細!I79 -> 0 | J33: =普通明細!K79 -> 0 | K33: =普通明細!L79 -> 0 | L33: =普通明細!M79 -> 0 | M33: =普通明細!N79 -> 0 | N33: 0 | O33: =普通明細!O79 -> 0 | P33: 0 | R33: 2018-08-24 | S33: 解約
A34: 720 | B34: みずほ銀座中央#111211 | C34: 普通 | D34: 1342744 | E34: 22451 | F34: =普通明細!F84 -> 2658626 | G34: =普通明細!G84 -> 0 | H34: =普通明細!H84 -> 0 | I34: =普通明細!I84 -> 0 | J34: =普通明細!K84 -> 660 | K34: =普通明細!L84 -> 0 | L34: =普通明細!M84 -> 2660000 | M34: =普通明細!N84 -> 0 | N34: 20417 | O34: =普通明細!O84 -> 0 | P34: 20417
A35: 754 | B35: 埼玉りそな熊谷 | C35: 普通 | D35: 3723271 | E35: 0 | F35: =普通明細!F88 -> 0 | G35: =普通明細!G88 -> 0 | H35: =普通明細!H88 -> 0 | I35: =普通明細!I88 -> 0 | J35: =普通明細!K88 -> 0 | K35: =普通明細!L88 -> 0 | L35: =普通明細!M88 -> 0 | M35: =普通明細!N88 -> 0 | N35: 0 | O35: =普通明細!O88 -> 0 | P35: 0 | R35: 2016-03-14 | S35: 解約
A36: 756 | B36: りそな九段#111112 | C36: 普通 | D36: 1192903 | E36: 2006055 | F36: =普通明細!F98 -> 0 | G36: =普通明細!G98 -> 0 | H36: =普通明細!H98 -> 0 | I36: =普通明細!I98 -> 0 | J36: =普通明細!K98 -> 616410 | K36: =普通明細!L98 -> 0 | L36: =普通明細!M98 -> 0 | M36: =普通明細!N98 -> 0 | N36: 1389645 | O36: =普通明細!O98 -> 0 | P36: 1389645
A37: 800 | B37: 三井住友日比谷 | C37: 普通 | D37: 5058573 | E37: 0 | F37: =普通明細!F102 -> 0 | G37: =普通明細!G102 -> 0 | H37: =普通明細!H102 -> 0 | I37: =普通明細!I102 -> 0 | J37: =普通明細!K102 -> 0 | K37: =普通明細!L102 -> 0 | L37: =普通明細!M102 -> 0 | M37: =普通明細!N102 -> 0 | N37: 0 | O37: =普通明細!O102 -> 0 | P37: 0 | R37: 2015-07-31 | S37: 解約
A38: 810 | B38: 三井住友日比谷C#111213 | C38: 普通 | D38: 7613533 | E38: 2110 | F38: =普通明細!F106 -> 18920084 | G38: =普通明細!G106 -> 0 | H38: =普通明細!H106 -> 0 | I38: =普通明細!I106 -> 0 | J38: =普通明細!K106 -> 0 | K38: =普通明細!L106 -> 0 | L38: =普通明細!M106 -> 18900000 | M38: =普通明細!N106 -> 0 | N38: 22194 | O38: =普通明細!O106 -> 0 | P38: 22194
A39: 890 | B39: 三井住友丸ノ内#111032 | C39: 普通 | D39: 6576973 | E39: 27166 | F39: =普通明細!F125 -> 0 | G39: =普通明細!G125 -> 0 | H39: =普通明細!H125 -> 0 | I39: =普通明細!I125 -> 0 | J39: =普通明細!K125 -> 0 | K39: =普通明細!L125 -> 0 | L39: =普通明細!M125 -> 0 | M39: =普通明細!N125 -> 0 | N39: 27166 | O39: =普通明細!O125 -> 0 | P39: 27166
A40: 910 | B40: みずほコーポレート日本橋(営)#111214 | C40: 普通 | D40: 2011849 | E40: 29846 | F40: =普通明細!F130 -> 8695730 | G40: =普通明細!G130 -> 0 | H40: =普通明細!H130 -> 0 | I40: =普通明細!I130 -> 0 | J40: =普通明細!K130 -> 0 | K40: =普通明細!L130 -> 0 | L40: =普通明細!M130 -> 8700000 | M40: =普通明細!N130 -> 0 | N40: 25576 | O40: =普通明細!O130 -> 0 | P40: 25576
A41: 920 | B41: みずほ四谷 | C41: 普通 | D41: 1135192 | E41: 0 | F41: =普通明細!F135 -> 0 | G41: =普通明細!G135 -> 0 | H41: =普通明細!H135 -> 0 | I41: =普通明細!I135 -> 0 | J41: =普通明細!K135 -> 0 | K41: =普通明細!L135 -> 0 | L41: =普通明細!M135 -> 0 | M41: =普通明細!N135 -> 0 | N41: 0 | O41: =普通明細!O135 -> 0 | P41: 0 | R41: 2017-12-15 | S41: 解約
A42: 970 | B42: みずほ新所沢（狭山出張所）#111216 | C42: 普通 | D42: 2326621 | E42: 0 | F42: =普通明細!F139 -> 0 | G42: =普通明細!G139 -> 0 | H42: =普通明細!H139 -> 0 | I42: =普通明細!I139 -> 0 | J42: =普通明細!K139 -> 0 | K42: =普通明細!L139 -> 0 | L42: =普通明細!M139 -> 0 | M42: =普通明細!N139 -> 0 | N42: 0 | O42: =普通明細!O139 -> 0 | P42: 0
A43: 1300 | B43: 武蔵野本店#111256 | C43: 普通 | D43: 1234678 | E43: 0 | F43: =普通明細!F143 -> 0 | G43: =普通明細!G143 -> 0 | H43: =普通明細!H143 -> 0 | I43: =普通明細!I143 -> 0 | J43: =普通明細!K143 -> 0 | K43: =普通明細!L143 -> 0 | L43: =普通明細!M143 -> 0 | M43: =普通明細!N143 -> 0 | N43: 0 | O43: =普通明細!O143 -> 0 | P43: 0 | R43: 2021-07-01 | S43: 解約
A44: 1020 | B44: 足利芳賀#111218 | C44: 普通 | D44: 2773323 | E44: 1021044 | F44: =普通明細!F147 -> 4072340 | G44: =普通明細!G147 -> 0 | H44: =普通明細!H147 -> 0 | I44: =普通明細!I147 -> 0 | J44: =普通明細!K147 -> 0 | K44: =普通明細!L147 -> 0 | L44: =普通明細!M147 -> 5070000 | M44: =普通明細!N147 -> 0 | N44: 23384 | O44: =普通明細!O147 -> 0 | P44: 23384
A45: 1050 | B45: 七十七南町通#111219 | C45: 普通 | D45: 142565 | E45: 0 | F45: =普通明細!F151 -> 0 | G45: =普通明細!G151 -> 0 | H45: =普通明細!H151 -> 0 | I45: =普通明細!I151 -> 0 | J45: =普通明細!K151 -> 0 | K45: =普通明細!L151 -> 0 | L45: =普通明細!M151 -> 0 | M45: =普通明細!N151 -> 0 | N45: 0 | O45: =普通明細!O151 -> 0 | P45: 0 | R45: 2022-03-14 | S45: 解約
A46: 1071 | B46: 三井住友京橋#111221 | C46: 普通 | D46: 8304814 | E46: 3399 | F46: =普通明細!F155 -> 39211540 | G46: =普通明細!G155 -> 0 | H46: =普通明細!H155 -> 0 | I46: =普通明細!I155 -> 0 | J46: =普通明細!K155 -> 0 | K46: =普通明細!L155 -> 0 | L46: =普通明細!M155 -> 39200000 | M46: =普通明細!N155 -> 0 | N46: 14939 | O46: =普通明細!O155 -> 0 | P46: 14939
A47: 1320 | B47: りそな九段#111132 | C47: 普通 | D47: 1532892 | E47: 385320 | F47: =普通明細!F159 -> 0 | G47: =普通明細!G159 -> 0 | H47: =普通明細!H159 -> 0 | I47: =普通明細!I159 -> 0 | J47: =普通明細!K159 -> 0 | K47: =普通明細!L159 -> 0 | L47: =普通明細!M159 -> 360000 | M47: =普通明細!N159 -> 0 | N47: 25320 | O47: =普通明細!O159 -> 0 | P47: 25320 | R47: 2021-04-01 | S47: 新設
A48: 1310 | B48: 三菱UFJ東京営業部CASIO#111052 | C48: 普通 | D48: 1080754 | E48: 25726 | F48: =普通明細!F165 -> 0 | G48: =普通明細!G165 -> 0 | H48: =普通明細!H165 -> 0 | I48: =普通明細!I165 -> 0 | J48: =普通明細!K165 -> 0 | K48: =普通明細!L165 -> 0 | L48: =普通明細!M165 -> 0 | M48: =普通明細!N165 -> 0 | N48: 25726 | O48: =普通明細!O165 -> 0 | P48: 25726
A49: 1110 | B49: 静岡東京#111223 | C49: 普通 | D49: 274146 | E49: 13457 | F49: =普通明細!F170 -> 0 | G49: =普通明細!G170 -> 0 | H49: =普通明細!H170 -> 0 | I49: =普通明細!I170 -> 0 | J49: =普通明細!K170 -> 0 | K49: =普通明細!L170 -> 0 | L49: =普通明細!M170 -> 0 | M49: =普通明細!N170 -> 0 | N49: 13457 | O49: =普通明細!O170 -> 0 | P49: 13457
A50: 1120 | B50: 千葉興業幕張ﾃｸﾉｶﾞｰﾃﾞﾝ#111224 | C50: 普通 | D50: 2568891 | E50: 24912 | F50: =普通明細!F174 -> 0 | G50: =普通明細!G174 -> 0 | H50: =普通明細!H174 -> 0 | I50: =普通明細!I174 -> 0 | J50: =普通明細!K174 -> 0 | K50: =普通明細!L174 -> 0 | L50: =普通明細!M174 -> 0 | M50: =普通明細!N174 -> 0 | N50: 24912 | O50: =普通明細!O174 -> 0 | P50: 24912
A51: 1130 | B51: 八十二諏訪#111225 | C51: 普通 | D51: 891465 | E51: 161867 | F51: =普通明細!F178 -> 2678936 | G51: =普通明細!G178 -> 0 | H51: =普通明細!H178 -> 0 | I51: =普通明細!I178 -> 0 | J51: =普通明細!K178 -> 0 | K51: =普通明細!L178 -> 0 | L51: =普通明細!M178 -> 2820000 | M51: =普通明細!N178 -> 0 | N51: 20803 | O51: =普通明細!O178 -> 0 | P51: 20803
A52: 1150 | B52: 群馬太田市役所出張所#111226 | C52: 普通 | D52: 276716 | E52: 82868 | F52: =普通明細!F182 -> 0 | G52: =普通明細!G182 -> 0 | H52: =普通明細!H182 -> 0 | I52: =普通明細!I182 -> 0 | J52: =普通明細!K182 -> 0 | K52: =普通明細!L182 -> 0 | L52: =普通明細!M182 -> 0 | M52: =普通明細!N182 -> 0 | N52: 82868 | O52: =普通明細!O182 -> 0 | P52: 82868
A53: 1160 | B53: 福岡本店営業部#111227 | C53: 普通 | D53: 5758570 | E53: 29164 | F53: =普通明細!F187 -> 0 | G53: =普通明細!G187 -> 0 | H53: =普通明細!H187 -> 0 | I53: =普通明細!I187 -> 0 | J53: =普通明細!K187 -> 0 | K53: =普通明細!L187 -> 0 | L53: =普通明細!M187 -> 0 | M53: =普通明細!N187 -> 0 | N53: 29164 | O53: =普通明細!O187 -> 0 | P53: 29164
A54: 1170 | B54: 肥後大津#111228 | C54: 普通 | D54: 1936464 | E54: 18528 | F54: =普通明細!F193 -> 0 | G54: =普通明細!G193 -> 0 | H54: =普通明細!H193 -> 0 | I54: =普通明細!I193 -> 0 | J54: =普通明細!K193 -> 0 | K54: =普通明細!L193 -> 0 | L54: =普通明細!M193 -> 0 | M54: =普通明細!N193 -> 0 | N54: 18528 | O54: =普通明細!O193 -> 0 | P54: 18528
A55: 1180 | B55: 百十四銀行東京支店#111257 | C55: 普通 | D55: 0381413 | E55: 0 | F55: =普通明細!F197 -> 0 | G55: =普通明細!G197 -> 0 | H55: =普通明細!H197 -> 0 | I55: =普通明細!I197 -> 0 | J55: =普通明細!K197 -> 0 | K55: =普通明細!L197 -> 0 | L55: =普通明細!M197 -> 0 | M55: =普通明細!N197 -> 0 | N55: 0 | O55: =普通明細!O197 -> 0 | P55: 0 | R55: 2023年3月解約
A56: 1190 | B56: 岡崎信用金庫名古屋支店#111258 | C56: 普通 | D56: 9005918 | E56: 24740 | F56: =普通明細!F201 -> 0 | G56: =普通明細!G201 -> 0 | H56: =普通明細!H201 -> 0 | I56: =普通明細!I201 -> 0 | J56: =普通明細!K201 -> 0 | K56: =普通明細!L201 -> 0 | L56: =普通明細!M201 -> 0 | M56: =普通明細!N201 -> 0 | N56: 24740 | O56: =普通明細!O201 -> 0 | P56: 24740
A57: 1200 | B57: 福岡銀行東京支店#111261 | C57: 普通 | D57: 417721 | E57: 8228 | F57: =普通明細!F206 -> 0 | G57: =普通明細!G206 -> 0 | H57: =普通明細!H206 -> 0 | I57: =普通明細!I206 -> 0 | J57: =普通明細!K206 -> 0 | K57: =普通明細!L206 -> 0 | L57: =普通明細!M206 -> 0 | M57: =普通明細!N206 -> 0 | N57: 8228 | O57: =普通明細!O206 -> 0 | P57: =E57+F57+G57-I57-J57-O57+Q57+M57+H57-L57 -> 8228
A58: 1210 | B58: みずほ九段#111262 | C58: 普通 | D58: 1473190 | E58: 25983 | F58: =普通明細!F213 -> 0 | G58: =普通明細!G213 -> 0 | H58: =普通明細!H213 -> 0 | I58: =普通明細!I213 -> 0 | J58: =普通明細!K213 -> 0 | K58: =普通明細!L213 -> 0 | L58: =普通明細!M213 -> 0 | M58: =普通明細!N213 -> 0 | N58: 25983 | O58: =普通明細!O213 -> 0 | P58: =E58+F58+G58-I58-J58-O58+Q58+M58+H58-L58 -> 25983
A59: 1220 | B59: 池田泉州東京#111122 | C59: 普通 | D59: 8477 | E59: 101443 | F59: =普通明細!F217 -> 223140 | G59: =普通明細!G217 -> 0 | H59: =普通明細!H217 -> 0 | I59: =普通明細!I217 -> 0 | J59: =普通明細!K217 -> 0 | K59: =普通明細!L217 -> 0 | L59: =普通明細!M217 -> 220000 | M59: =普通明細!N217 -> 0 | N59: 104583 | O59: =普通明細!O217 -> 0 | P59: =E59+F59+G59-I59-J59-O59+Q59+M59+H59-L59 -> 104583
A60: 2000 | B60: ゆうちょ銀行#111229 | C60: 普通 | D60: 49973441 | E60: 156880 | F60: =普通明細!F221 -> 0 | G60: =普通明細!G221 -> 0 | H60: =普通明細!H221 -> 0 | I60: =普通明細!I221 -> 0 | J60: =普通明細!K221 -> 0 | K60: 0.2 | L60: =普通明細!M221 -> 0 | M60: =普通明細!N221 -> 0 | N60: 156880 | O60: =普通明細!O221 -> 0 | P60: =E60+F60+G60-I60-J60-O60+Q60+M60+H60-L60 -> 156880
B62: 普通預金残高 | E62: 10286602 | F62: =SUM(F20:F60) -> 1010172822 | G62: 0 | H62: 44530000 | I62: 0 | J62: 617070 | K62: 0.2 | L62: 1056825135 | M62: 0 | N62: 7547219 | O62: 0 | P62: 7547219 | Q62: 0
A64: 170 | B64: 三菱UFJ東京営業部#111301 | C64: $普通 | D64: 6554861 | E64: 38 | F64: =外貨預金!F5 -> 1 | J64: =外貨預金!I5 -> 0 | L64: =外貨預金!J5 -> 0 | N64: =E64+F64+H64-J64-L64 -> 39
A65: 230 | B65: 横浜東京#111302 | C65: $普通 | D65: 1556151 | E65: 5573 | F65: =外貨預金!F18 -> 208 | J65: =外貨預金!I18 -> 0 | L65: =外貨預金!J18 -> 0 | N65: =E65+F65+H65-J65-L65 -> 5781
A66: 890 | B66: 三井住友丸ノ内#111303 | C66: $普通 | D66: 6522283 | E66: 0 | F66: =外貨預金!F21 -> 0 | J66: =外貨預金!I21 -> 0 | L66: =外貨預金!J21 -> 0 | N66: =E66+F66+H66-J66-L66 -> 0
B68: 外貨ＵＳ＄預金残高 | E68: 5611 | F68: =SUM(F64:F66) -> 209 | G68: =SUM(G64:G67) -> 0 | H68: 0 | I68: 0 | J68: 0 | K68: 0 | L68: 0 | M68: 0 | N68: 5820 | O68: =SUM(O64:O67) -> 0 | P68: =SUM(P64:P67) -> 0 | Q68: =SUM(Q64:Q67) -> 0
A70: 170 | B70: 三菱UFJ東京営業部#111401 | C70: HK$普通 | D70: 1722760 | E70: 0 | F70: =外貨預金!F8 -> 0 | J70: =外貨預金!I8 -> 0 | L70: =外貨預金!J8 -> 0 | N70: =E70+F70+H70-J70-L70 -> 0
B72: 外貨ＨＫ＄預金残高 | E72: 0 | F72: =SUM(F70) -> 0 | G72: =SUM(G70:G71) -> 0 | H72: 0 | I72: 0 | J72: 0 | K72: 0 | L72: 0 | M72: 0 | N72: 0 | O72: =SUM(O70:O71) -> 0 | P72: =SUM(P70:P71) -> 0 | Q72: =SUM(Q70:Q71) -> 0
A74: 170 | B74: 三菱UFJ東京営業部#111501 | C74: ￡普通 | D74: 1722802 | E74: 0 | F74: =外貨預金!F12 -> 0 | J74: =外貨預金!I12 -> 0 | L74: =外貨預金!J12 -> 0 | N74: =E74+F74+H74-J74-L74 -> 0
B76: 外貨￡預金残高 | E76: 0 | F76: =外貨預金!F12 -> 0 | G76: =SUM(G74:G75) -> 0 | H76: =SUM(H74:H75) -> 0 | I76: 0 | J76: 0 | K76: 0 | L76: 0 | M76: 0 | N76: 0 | O76: =SUM(O74:O75) -> 0 | P76: =SUM(P74:P75) -> 0 | Q76: =SUM(Q74:Q75) -> 0
A78: 170 | B78: 三菱UFJ東京営業部0170#111601 | C78: EUR普通 | D78: 1776444 | E78: 0 | F78: =外貨預金!F15 -> 0 | J78: =外貨預金!I15 -> 0 | L78: =外貨預金!J15 -> 0 | N78: =E78+F78+H78-J78-L78 -> 0
A79: 890 | B79: 三井住友丸ノ内#111602 | C79: EUR普通 | D79: 6522283 | E79: 6 | F79: =外貨預金!F24 -> 2 | J79: =外貨預金!I24 -> 8 | L79: =外貨預金!J24 -> 0 | N79: =E79+F79+H79-J79-L79 -> 0
B81: 外貨ＥＵＲ預金残高 | E81: 6 | F81: =SUM(F78:F80) -> 2 | G81: 0 | H81: 0 | I81: 0 | J81: 8 | K81: 0 | L81: 0 | M81: 0 | N81: 0 | O81: =SUM(O78:O80) -> 0 | P81: =SUM(P78:P80) -> 0 | Q81: =SUM(Q78:Q80) -> 0
B83: 外貨預金残高 | E83: 5617 | F83: =+F68+F72+F76+F81 -> 211 | G83: 0 | H83: =+H68+H72+H76+H81 -> 0 | I83: 0 | J83: 8 | K83: 0 | L83: =+L68+L72+L76+L81 -> 0 | M83: =+M68+M72+M76+M81 -> 0 | N83: 5820 | O83: =+O68+O72+O76+O81 -> 0 | P83: =+P68+P72+P76+P81 -> 0 | Q83: =+Q68+Q72+Q76+Q81 -> 0
A85: 0806 | B85: りそな九段（青山 三井住友海上） | C85: 普通 | D85: 1334430 | E85: 0 | N85: =E85+F85+H85-J85-L85 -> 0 | R85: 2019-03-05 | S85: 解約
A86: 0809 | B86: りそな九段（統括 東京海上）#111231 | C86: 普通 | D86: 1256831 | E86: 0 | N86: =E86+F86+H86-J86-L86 -> 0
A87: 1459 | B87: りそな九段（総務 東京海上） | C87: 普通 | D87: 1229549 | E87: 0 | N87: 0 | R87: 2018-07-25 | S87: 解約
A88: 1460 | B88: りそな九段（統括 エース）#111234 | C88: 普通 | D88: 1233053 | E88: 10000 | N88: 10000
A89: 1463 | B89: りそな九段（統括 ＡＩG）#111235 | C89: 普通 | D89: 1288438 | E89: 24497218 | F89: 4903985 | J89: 25905050 | N89: 3496153
A90: 1464 | B90: りそな九段（四谷 三井住友海上）#111232 | C90: 普通 | D90: 1398518 | E90: 0 | N90: 0
B92: 保険口座合計 | E92: 24507218 | F92: =SUM(F85:F91) -> 4903985 | G92: =SUM(G85:G91) -> 0 | H92: 0 | I92: 0 | J92: 25905050 | L92: 0 | M92: 0 | N92: =SUM(N85:N91) -> 3506153 | O92: =SUM(O85:O91) -> 0 | P92: =SUM(P85:P91) -> 0 | Q92: =SUM(Q85:Q91) -> 0
A94: 1025 | B94: 栃木宇都宮駅前 | C94: 宇都宮土地管理料 | D94: 7434691 | E94: 0 | N94: =E94+F94+H94-J94-L94 -> 0 | S94: 解約済み
B95: 現金#100014 | E95: 2392486 | F95: 6130 | J95: 726624 | N95: =E95+F95+H95-J95-L95 -> 1671992 | V95: =IF(U95="","",MID($B$3,6,5)&"資金移動") -> 
B96: 定期預金(三菱UFJ東京営業部) | E96: 0 | N96: =E96+F96+H96-J96-L96 -> 0
B97: 両替商通貨（＄）0105 | E97: 0 | N97: =E97+F97+H97-J97-L97 -> 0
B98: 両替商通貨（その他）0106 | E98: 0 | N98: =E98+F98+H98-J98-L98 -> 0
B100: その他合計 | E100: 2932486 | F100: =SUM(F94:F99) -> 6130 | G100: 0 | H100: 0 | I100: 0 | J100: 726624 | K100: 0 | L100: 0 | M100: 0 | N100: =SUM(N94:N99) -> 1671992 | O100: =SUM(O94:O99) -> 0 | P100: =SUM(P94:P99) -> 0 | Q100: =SUM(Q94:Q99) -> 0
B102: 預金残高総合計 | E102: 76701270 | F102: =F18+F62+F83+F92+F100 -> 1492703846 | G102: =G18+G62+G83+G92+G100 -> 0 | H102: =H18+H62+H83+H92+H100 -> 1133265135 | I102: 0 | J102: 1513469076 | K102: 0.2 | L102: =L18+L62+L83+L92+L100 -> 1133265135 | M102: 0 | N102: 50847467 | O102: 0 | P102: =P18+P62 -> 45663502 | Q102: =Q18+Q62+Q92+Q100 -> 0
A105: 転記キー | B105: A/C | C105: 金額 | D105: 摘要
A106: 40 | B106: 111050 | C106: =IF(H8=0,"",H8) ->  | D106: =IF(C106="","",MID($B$3,6,5)&"資金移動") ->  | F106: =IF(C106="","",1) ->  | G106: =F106 -> 
A107: 40 | B107: 111010 | C107: 1080485135 | D107: =IF(C107="","",MID($B$3,6,5)&"資金移動") -> 06.30資金移動 | F107: 1 | G107: =IF(F107="","",SUM($F$106:F107)) -> 1
A108: 40 | B108: 111060 | G108: =IF(F108="","",SUM($F$106:F108)) -> 
A109: 40 | B109: 111020 | C109: 8250000 | D109: 06.30資金移動 | F109: 1 | G109: =IF(F109="","",SUM($F$106:F109)) -> 2
A110: 40 | B110: 111070 | G110: =IF(F110="","",SUM($F$106:F110)) -> 
A111: 40 | B111: 111080 | G111: =IF(F111="","",SUM($F$106:F111)) -> 
A112: 40 | B112: 111030 | G112: =IF(F112="","",SUM($F$106:F112)) -> 
A113: 40 | B113: 111040 | G113: =IF(F113="","",SUM($F$106:F113)) -> 
A114: 40 | B114: 111090 | G114: =IF(F114="","",SUM($F$106:F114)) -> 
A115: 40 | B115: 111201 | C115: =IF(H20=0,"",H20) ->  | G115: =IF(F115="","",SUM($F$106:F115)) -> 
A116: 40 | B116: 111202 | G116: =IF(F116="","",SUM($F$106:F116)) -> 
A117: 40 | B117: 111203 | G117: =IF(F117="","",SUM($F$106:F117)) -> 
A118: 40 | B118: 111204 | G118: =IF(F118="","",SUM($F$106:F118)) -> 
A119: 40 | B119: 111012 | C119: 44530000 | D119: 06.30資金移動 | F119: 1 | G119: =IF(F119="","",SUM($F$106:F119)) -> 3
A120: 40 | B120: 111205 | G120: =IF(F120="","",SUM($F$106:F120)) -> 
A121: 40 | B121: 111102 | G121: =IF(F121="","",SUM($F$106:F121)) -> 
A122: 40 | B122: 111206 | G122: =IF(F122="","",SUM($F$106:F122)) -> 
A123: 40 | B123: 111022 | G123: =IF(F123="","",SUM($F$106:F123)) -> 
A124: 40 | B124: 111207 | G124: =IF(F124="","",SUM($F$106:F124)) -> 
A125: 40 | B125: 111208 | G125: =IF(F125="","",SUM($F$106:F125)) -> 
A126: 40 | B126: 111209 | G126: =IF(F126="","",SUM($F$106:F126)) -> 
A127: 40 | B127: 111072 | G127: =IF(F127="","",SUM($F$106:F127)) -> 
A128: 40 | B128: 111210 | G128: =IF(F128="","",SUM($F$106:F128)) -> 
A129: 40 | B129: 111211 | G129: =IF(F129="","",SUM($F$106:F129)) -> 
A130: 40 | B130: 111212 | G130: =IF(F130="","",SUM($F$106:F130)) -> 
A131: 40 | B131: 111112 | G131: =IF(F131="","",SUM($F$106:F131)) -> 
A132: 40 | B132: 111080 | G132: =IF(F132="","",SUM($F$106:F132)) -> 
A133: 40 | B133: 111213 | G133: =IF(F133="","",SUM($F$106:F133)) -> 
A134: 40 | B134: 111032 | G134: =IF(F134="","",SUM($F$106:F134)) -> 
A135: 40 | B135: 111214 | G135: =IF(F135="","",SUM($F$106:F135)) -> 
A136: 40 | B136: 111215 | G136: =IF(F136="","",SUM($F$106:F136)) -> 
A137: 40 | B137: 111216 | G137: =IF(F137="","",SUM($F$106:F137)) -> 
A138: 40 | B138: 111256 | G138: =IF(F138="","",SUM($F$106:F138)) -> 
A139: 40 | B139: 111218 | G139: =IF(F139="","",SUM($F$106:F139)) -> 
A140: 40 | B140: 111219 | G140: =IF(F140="","",SUM($F$106:F140)) -> 
A141: 40 | B141: 111256 | G141: =IF(F141="","",SUM($F$106:F141)) -> 
A142: 40 | B142: 111132 | G142: =IF(F142="","",SUM($F$106:F142)) ->  | V142: =IF(U142="","",MID($B$3,6,5)&"資金移動") -> 
A143: 40 | B143: 111052 | G143: =IF(F143="","",SUM($F$106:F143)) -> 
A144: 40 | B144: 111223 | G144: =IF(F144="","",SUM($F$106:F144)) -> 
A145: 40 | B145: 111224 | G145: =IF(F145="","",SUM($F$106:F145)) -> 
A146: 40 | B146: 111225 | G146: =IF(F146="","",SUM($F$106:F146)) -> 
A147: 40 | B147: 111226 | G147: =IF(F147="","",SUM($F$106:F147)) -> 
A148: 40 | B148: 111227 | C148: =IF(H53=0,"",H53) ->  | F148: =IF(C148="","",1) ->  | G148: =IF(F148="","",SUM($F$106:F148)) -> 
A149: 40 | B149: 111228 | F149: =IF(C149="","",1) ->  | G149: =IF(F149="","",SUM($F$106:F149)) -> 
A150: 40 | B150: 111257
A151: 40 | B151: 111258 | D151: =IF(C151="","",MID($B$3,6,5)&"資金移動") ->  | F151: =IF(C151="","",1) ->  | G151: =IF(F151="","",SUM($F$106:F151)) -> 
A152: 40 | B152: 111261 | F152: =IF(C152="","",1) ->  | G152: =IF(F152="","",SUM($F$106:F152)) -> 
A153: 40 | B153: 111262 | F153: =IF(C153="","",1) ->  | G153: =IF(F153="","",SUM($F$106:F153)) -> 
A154: 40 | B154: 111122 | F154: =IF(C154="","",1) ->  | G154: =IF(F154="","",SUM($F$106:F154)) -> 
A155: 40 | B155: 111229 | F155: =IF(C155="","",1) ->  | G155: =IF(F155="","",SUM($F$106:F155)) -> 
A156: 40 | B156: 111301 | C156: =IF(H64=0,"",H64) ->  | G156: =IF(F156="","",SUM($F$106:F156)) -> 
A157: 40 | B157: 111302 | C157: =IF(H65=0,"",H65) ->  | G157: =IF(F157="","",SUM($F$106:F157)) -> 
A158: 40 | B158: 111303 | C158: =IF(H66=0,"",H66) ->  | G158: =IF(F158="","",SUM($F$106:F158)) -> 
A159: 40 | B159: 111401 | C159: =IF(H70=0,"",H70) ->  | G159: =IF(F159="","",SUM($F$106:F159)) -> 
A160: 40 | B160: 111501 | C160: =IF(H74=0,"",H74) ->  | G160: =IF(F160="","",SUM($F$106:F160)) -> 
A161: 40 | B161: 111601 | C161: =IF(H78=0,"",H78) ->  | D161: =IF(C161="","",MID($B$3,6,5)&"資金移動") ->  | G161: =IF(F161="","",SUM($F$106:F161)) -> 
A162: 40 | B162: 111303 | C162: =IF(H79=0,"",H79) ->  | G162: =IF(F162="","",SUM($F$106:F162)) -> 
A163: 40 | B163: 111230 | C163: =IF(H85=0,"",H85) ->  | G163: =IF(F163="","",SUM($F$106:F163)) -> 
A164: 40 | B164: 111231 | G164: =IF(F164="","",SUM($F$106:F164)) -> 
A165: 40 | B165: 111233 | G165: =IF(F165="","",SUM($F$106:F165)) -> 
A166: 40 | B166: 111234 | G166: =IF(F166="","",SUM($F$106:F166)) -> 
A167: 40 | B167: 111235 | G167: =IF(F167="","",SUM($F$106:F167)) -> 
A168: 40 | B168: 111232 | G168: =IF(F168="","",SUM($F$106:F168)) -> 
A169: 40 | B169: 111236 | C169: =IF(H91=0,"",H91) ->  | F169: =IF(C169="","",1) ->  | G169: =IF(F169="","",SUM($F$106:F169)) -> 
A170: 50 | B170: 111050 | C170: =IF(L8=0,"",L8) -> 1680000 | D170: =IF(C170="","",MID($B$3,6,5)&"資金移動") -> 06.30資金移動 | F170: 1 | G170: =IF(F170="","",SUM($F$106:F170)) -> 4
A171: 50 | B171: 111010 | C171: 8250000 | D171: 06.30資金移動 | F171: 1 | G171: =IF(F171="","",SUM($F$106:F171)) -> 5
A172: 50 | B172: 111060 | G172: =IF(F172="","",SUM($F$106:F172)) -> 
A173: 50 | B173: 111020 | G173: =IF(F173="","",SUM($F$106:F173)) -> 
A174: 50 | B174: 111070 | G174: =IF(F174="","",SUM($F$106:F174)) -> 
A175: 50 | B175: 111080 | G175: =IF(F175="","",SUM($F$106:F175)) -> 
A176: 50 | B176: 111030 | F176: =IF(C176="","",1) ->  | G176: =IF(F176="","",SUM($F$106:F176)) -> 
A177: 50 | B177: 111040 | C177: 66510000 | D177: 06.30資金移動 | F177: 1 | G177: =IF(F177="","",SUM($F$106:F177)) -> 6
A178: 50 | B178: 111090 | G178: =IF(F178="","",SUM($F$106:F178)) -> 
A179: 50 | B179: 111201 | C179: =IF(L20=0,"",L20) ->  | G179: =IF(F179="","",SUM($F$106:F179)) -> 
A180: 50 | B180: 111202 | G180: =IF(F180="","",SUM($F$106:F180)) -> 
A181: 50 | B181: 111203 | G181: =IF(F181="","",SUM($F$106:F181)) -> 
A182: 50 | B182: 111204 | G182: =IF(F182="","",SUM($F$106:F182)) -> 
A183: 50 | B183: 111012 | C183: 45600000 | D183: 06.30資金移動 | F183: 1 | G183: =IF(F183="","",SUM($F$106:F183)) -> 7
A184: 50 | B184: 111205 | G184: =IF(F184="","",SUM($F$106:F184)) -> 
A185: 50 | B185: 111102 | C185: 910275135 | D185: 06.30資金移動 | F185: 1 | G185: =IF(F185="","",SUM($F$106:F185)) -> 8
A186: 50 | B186: 111206 | C186: 23000000 | D186: 06.30資金移動 | F186: 1 | G186: =IF(F186="","",SUM($F$106:F186)) -> 9
A187: 50 | B187: 111022 | G187: =IF(F187="","",SUM($F$106:F187)) -> 
A188: 50 | B188: 111207 | G188: =IF(F188="","",SUM($F$106:F188)) -> 
A189: 50 | B189: 111208 | G189: =IF(F189="","",SUM($F$106:F189)) -> 
A190: 50 | B190: 111209 | C190: 20000 | D190: 06.30資金移動 | F190: 1 | G190: =IF(F190="","",SUM($F$106:F190)) -> 10
A191: 50 | B191: 111072 | G191: =IF(F191="","",SUM($F$106:F191)) -> 
A192: 50 | B192: 111210 | G192: =IF(F192="","",SUM($F$106:F192)) -> 
A193: 50 | B193: 111211 | C193: 2660000 | D193: 06.30資金移動 | F193: 1 | G193: =IF(F193="","",SUM($F$106:F193)) -> 11
A194: 50 | B194: 111212 | G194: =IF(F194="","",SUM($F$106:F194)) -> 
A195: 50 | B195: 111112 | G195: =IF(F195="","",SUM($F$106:F195)) -> 
A196: 50 | B196: 111080 | G196: =IF(F196="","",SUM($F$106:F196)) -> 
A197: 50 | B197: 111213 | C197: 18900000 | D197: 06.30資金移動 | F197: 1 | G197: =IF(F197="","",SUM($F$106:F197)) -> 12
A198: 50 | B198: 111032 | G198: =IF(F198="","",SUM($F$106:F198)) -> 
A199: 50 | B199: 111214 | C199: 8700000 | D199: 06.30資金移動 | F199: 1 | G199: =IF(F199="","",SUM($F$106:F199)) -> 13
A200: 50 | B200: 111215 | G200: =IF(F200="","",SUM($F$106:F200)) -> 
A201: 50 | B201: 111216 | G201: =IF(F201="","",SUM($F$106:F201)) -> 
A202: 50 | B202: 111256 | G202: =IF(F202="","",SUM($F$106:F202)) -> 
A203: 50 | B203: 111218 | C203: 5070000 | D203: 06.30資金移動 | F203: 1 | G203: =IF(F203="","",SUM($F$106:F203)) -> 14
A204: 50 | B204: 111219 | G204: =IF(F204="","",SUM($F$106:F204)) -> 
A205: 50 | B205: 111221 | C205: 39200000 | D205: 06.30資金移動 | F205: 1 | G205: =IF(F205="","",SUM($F$106:F205)) -> 15
A206: 50 | B206: 111132 | C206: 360000 | D206: 06.30資金移動 | F206: 1 | G206: =IF(F206="","",SUM($F$106:F206)) -> 16
A207: 50 | B207: 111052 | G207: =IF(F207="","",SUM($F$106:F207)) -> 
A208: 50 | B208: 111223 | G208: =IF(F208="","",SUM($F$106:F208)) -> 
A209: 50 | B209: 111224 | G209: =IF(F209="","",SUM($F$106:F209)) -> 
A210: 50 | B210: 111225 | C210: 2820000 | D210: 06.30資金移動 | F210: 1 | G210: =IF(F210="","",SUM($F$106:F210)) -> 17
A211: 50 | B211: 111226 | G211: =IF(F211="","",SUM($F$106:F211)) ->  | V211: =IF(U211="","",MID($B$3,6,5)&"資金移動") -> 
A212: 50 | B212: 111227 | G212: =IF(F212="","",SUM($F$106:F212)) -> 
A213: 50 | B213: 111228 | G213: =IF(F213="","",SUM($F$106:F213)) -> 
A214: 50 | B214: 111257
A215: 50 | B215: 111258 | C215: =IF(L56=0,"",L56) ->  | F215: =IF(C215="","",1) ->  | G215: =IF(F215="","",SUM($F$106:F215)) -> 
A216: 50 | B216: 111261 | C216: =IF(L57=0,"",L57) ->  | F216: =IF(C216="","",1) ->  | G216: =IF(F216="","",SUM($F$106:F216)) -> 
A217: 50 | B217: 111262 | C217: =IF(L58=0,"",L58) ->  | F217: =IF(C217="","",1) ->  | G217: =IF(F217="","",SUM($F$106:F217)) -> 
A218: 50 | B218: 111122 | C218: =IF(L59=0,"",L59) -> 220000 | D218: 06.30資金移動 | F218: =IF(C218="","",1) -> 1 | G218: =IF(F218="","",SUM($F$106:F218)) -> 18
A219: 50 | B219: 111229 | C219: =IF(L60=0,"",L60) ->  | F219: =IF(C219="","",1) ->  | G219: =IF(F219="","",SUM($F$106:F219)) -> 
A220: 50 | B220: 111301 | C220: =IF(L64=0,"",L64) ->  | G220: =IF(F220="","",SUM($F$106:F220)) -> 
A221: 50 | B221: 111302 | C221: =IF(L65=0,"",L65) ->  | G221: =IF(F221="","",SUM($F$106:F221)) -> 
A222: 50 | B222: 111303 | C222: =IF(L66=0,"",L66) ->  | G222: =IF(F222="","",SUM($F$106:F222)) -> 
A223: 50 | B223: 111401 | C223: =IF(L70=0,"",L70) ->  | G223: =IF(F223="","",SUM($F$106:F223)) -> 
... 10 more rows

Sheet 当座明細
A1: コード | B1: 銀行支店名 | C1: 預金種目 | D1: 口座番号 | E1: 入金 | J1: 出金
E2: 入金先 | G2: 他店資金化 | H2: 資金移動 | I2: 未達 | J2: 支払先 | K2: 当日出金 | L2: 資金移動 | M2: 小切手 | P2: 仮伝支払 | Q2: 小切手ＮＯ
M3: 引落日 | N3: 引落 | O3: 未達
A4: 100 | B4: 三菱東京UFJ日比谷 | C4: 当座 | D4: 111618 | J4: 0170集中 | L4: 1680000
F5: 1678587
C7: 合計 | F7: =SUBTOTAL(9,F4:F6) -> 1678587 | G7: =SUBTOTAL(9,G4:G6) -> 0 | H7: =SUBTOTAL(9,H4:H6) -> 0 | I7: =SUBTOTAL(9,I4:I6) -> 0 | K7: =SUBTOTAL(9,K4:K6) -> 0 | L7: =SUBTOTAL(9,L4:L6) -> 1680000 | N7: =SUBTOTAL(9,N4:N6) -> 0 | O7: =SUBTOTAL(9,O4:O6) -> 0 | P7: =SUBTOTAL(9,P4:P6) -> 0 | Q7: =SUBTOTAL(9,Q4:Q6) -> 0
A8: 170 | B8: 三菱東京UFJ東京営業部 | C8: 当座 | D8: 775173 | E8: CMS | H8: 910275135 | J8: 0756普通
F9: 406912999 | J9: 0170普通
E10: 0890当座 | J10: 0890普通
E11: 0891当座 | H11: 66510000 | J11: 0230当座 | L11: 8250000
E12: 0170普通 | H12: 45600000 | J12: 1220普通
E13: 0810普通 | H13: 18900000 | J13: 2000普通
E14: 1210普通 | J14: 0970普通
E15: 1071普通 | H15: 39200000 | J15: 0891当座
J16: 1210普通
J17: 1300普通
J18: 2000普通
J19: 1050普通
J20: 1071普通
J21: 1180普通
J23: ﾌﾘｶｴ/ｻﾞｲｹｲ | K23: 760000
J24: ｿｳｷﾕｳﾌﾘｿｳｺﾞｳﾌﾘｺﾐBIZ | K24: 1113400
J25: ｿｳｷﾕｳﾌﾘｿｳｺﾞｳﾌﾘｺﾐBIZ | K25: 15724894
J26: ｿｳｷﾕｳﾌﾘｿｳｺﾞｳﾌﾘｺﾐBIZ | K26: 15759296
J27: ｿｳｷﾕｳﾌﾘｿｳｺﾞｳﾌﾘｺﾐBIZ | K27: 32188725
J28: ｿｳｷﾕｳﾌﾘｿｳｺﾞｳﾌﾘｺﾐBIZ | K28: 45105387
J29: ｿｳｷﾕｳﾌﾘｿｳｺﾞｳﾌﾘｺﾐBIZ | K29: 386576146
J30: ｶﾞｲﾀﾒｿｳｷﾝ | K30: 348310
J31: ｶﾞｲﾀﾒｿｳｷﾝ | K31: 8945155
J32: ｶﾞｲﾀﾒｿｳｷﾝ | K32: 25081
J33: ｶﾞｲﾀﾒｿｳｷﾝ | K33: 937632
J34: ｶﾞｲﾀﾒｿｳｷﾝ | K34: 160352
J35: ｶﾞｲﾀﾒｿｳｷﾝ | K35: 6086074
J36: ｶﾞｲﾀﾒｿｳｷﾝ | K36: 98729
J37: ｶﾞｲﾀﾒｿｳｷﾝ | K37: 2554529
J38: ｶﾞｲﾀﾒｿｳｷﾝ | K38: 134638
J39: ｶﾞｲﾀﾒｿｳｷﾝ | K39: 2032458
J40: PE/INｼﾔｶｲﾎｹﾝﾘﾖｳﾄｳ(ｺﾂ | K40: 18316656
J41: ﾌﾘｺﾐ(BIZ2)ｶ)ｱﾑﾈﾂﾄ | K41: 1601329
J42: ﾊﾞﾗﾝｽｶ)ﾆﾂｼﾝCMS*321-ﾄ0372567 | K42: 940679343
C57: 合計 | F57: =SUM(F9:F56) -> 406912999 | G57: =SUM(G8:G56) -> 0 | H57: =SUM(H8:H56) -> 1080485135 | I57: =SUBTOTAL(9,I8:I15) -> 0 | K57: =SUM(K8:K56) -> 1479148134 | L57: =SUBTOTAL(9,L8:L56) -> 8250000 | N57: =SUBTOTAL(9,N8:N15) -> 0 | O57: =SUBTOTAL(9,O8:O15) -> 0 | P57: =SUBTOTAL(9,P8:P15) -> 0 | Q57: =SUBTOTAL(9,Q8:Q15) -> 0
A58: 171 | B58: 三菱東京UFJ東京営業部B | C58: 当座 | D58: 775181 | E58: 0170当座 | J58: 0170当座
C61: 合計 | F61: =SUBTOTAL(9,F58:F60) -> 0 | G61: =SUBTOTAL(9,G58:G60) -> 0 | H61: =SUBTOTAL(9,H58:H60) -> 0 | I61: =SUBTOTAL(9,I58:I60) -> 0 | K61: =SUBTOTAL(9,K58:K60) -> 0 | L61: =SUBTOTAL(9,L58:L60) -> 0 | N61: =SUBTOTAL(9,N58:N60) -> 0 | O61: =SUBTOTAL(9,O58:O60) -> 0 | P61: =SUBTOTAL(9,P58:P60) -> 0 | Q61: =SUBTOTAL(9,Q58:Q60) -> 0
A62: 230 | B62: 横浜東京 | C62: 当座 | D62: 127004 | E62: 0170当座 | H62: 8250000 | J62: 0170当座
E63: 0170普通 | J63: ﾌﾘｺﾐｼｷﾝ | K63: 2400717
E64: 0890当座 | J64: ｶﾞｲﾀﾒ | K64: 1141331
C66: 合計 | F66: =SUBTOTAL(9,F62:F65) -> 0 | G66: =SUBTOTAL(9,G62:G65) -> 0 | H66: =SUBTOTAL(9,H62:H65) -> 8250000 | K66: =SUBTOTAL(9,K62:K65) -> 3542048 | L66: =SUBTOTAL(9,L62:L65) -> 0 | N66: =SUBTOTAL(9,N62:N65) -> 0 | O66: =SUBTOTAL(9,O62:O65) -> 0 | P66: =SUBTOTAL(9,P62:P65) -> 0 | Q66: =SUBTOTAL(9,Q62:Q65) -> 0
A67: 450 | B67: 三菱UFJ信託本店 | C67: 当座 | D67: 1073895
B68: 2019/02解約
C70: 合計 | F70: =SUBTOTAL(9,F67:F69) -> 0 | G70: =SUBTOTAL(9,G67:G69) -> 0 | H70: =SUBTOTAL(9,H67:H69) -> 0 | I70: =SUBTOTAL(9,I67:I69) -> 0 | K70: =SUBTOTAL(9,K67:K69) -> 0 | L70: =SUBTOTAL(9,L67:L69) -> 0 | N70: =SUBTOTAL(9,N67:N69) -> 0 | O70: =SUBTOTAL(9,O67:O69) -> 0 | P70: =SUBTOTAL(9,P67:P69) -> 0 | Q70: =SUBTOTAL(9,Q67:Q69) -> 0
A71: 800 | B71: 三井住友日比谷 | C71: 当座 | D71: 5058573
B72: 2015/07/01解約
C74: 合計 | F74: =SUBTOTAL(9,F71:F73) -> 0 | G74: =SUBTOTAL(9,G71:G73) -> 0 | H74: =SUBTOTAL(9,H71:H73) -> 0 | I74: =SUBTOTAL(9,I71:I73) -> 0 | K74: =SUBTOTAL(9,K71:K73) -> 0 | L74: =SUBTOTAL(9,L71:L73) -> 0 | N74: =SUBTOTAL(9,N71:N73) -> 0 | O74: =SUBTOTAL(9,O71:O73) -> 0 | P74: =SUBTOTAL(9,P71:P73) -> 0 | Q74: =SUBTOTAL(9,Q71:Q73) -> 0
A75: 890 | B75: 三井住友丸ノ内 | C75: 当座 | D75: 6550530 | E75: 0170当座 | J75: 0170当座
E76: 0890普通 | J76: 0890普通
E77: 1071普通 | J77: 1071普通
E78: 0891当座
E79: 0810普通 | J79: ﾌﾘｺﾐ | K79: 1331980
E80: 0170普通 | J80: ｶﾞｲｺｸｶﾝｹｲｶﾞｲｺｸｿｳｷﾝ | K80: 2198162
C92: 合計 | F92: =SUBTOTAL(9,F75:F91) -> 0 | G92: =SUBTOTAL(9,G75:G91) -> 0 | H92: =SUBTOTAL(9,H75:H91) -> 0 | I92: =SUBTOTAL(9,I75:I91) -> 0 | K92: =SUBTOTAL(9,K75:K91) -> 3530142 | L92: =SUBTOTAL(9,L75:L91) -> 0 | N92: =SUBTOTAL(9,N75:N91) -> 0 | O92: =SUBTOTAL(9,O75:O91) -> 0 | P92: =SUBTOTAL(9,P75:P91) -> 0 | Q92: =SUBTOTAL(9,Q75:Q91) -> 0
A93: 891 | B93: 三井住友丸ノ内Ｂ(関東第二） | C93: 当座 | D93: 6550548 | F93: 69029112 | J93: 0170当座 | L93: 66510000
J94: ﾌﾘｺﾐﾃｽｳﾘﾖｳ
J95: 0890普通
J96: 0890当座
C97: 合計 | F97: =SUBTOTAL(9,F93:F96) -> 69029112 | G97: =SUBTOTAL(9,G93:G96) -> 0 | H97: =SUBTOTAL(9,H93:H96) -> 0 | I97: =SUBTOTAL(9,I93:I96) -> 0 | K97: =SUBTOTAL(9,K93:K96) -> 0 | L97: =SUBTOTAL(9,L93:L96) -> 66510000 | N97: =SUBTOTAL(9,N93:N96) -> 0 | O97: =SUBTOTAL(9,O93:O96) -> 0 | P97: =SUBTOTAL(9,P93:P96) -> 0 | Q97: =SUBTOTAL(9,Q93:Q96) -> 0
A98: 892 | B98: 三井住友丸ノ内Ｃ | C98: 当座 | D98: 6550556
C101: 合計 | F101: =SUBTOTAL(9,F98:F100) -> 0 | G101: =SUBTOTAL(9,G98:G100) -> 0 | H101: =SUBTOTAL(9,H98:H100) -> 0 | I101: =SUBTOTAL(9,I98:I100) -> 0 | K101: =SUBTOTAL(9,K98:K100) -> 0 | L101: =SUBTOTAL(9,L98:L100) -> 0 | N101: =SUBTOTAL(9,N98:N100) -> 0 | O101: =SUBTOTAL(9,O98:O100) -> 0 | P101: =SUBTOTAL(9,P98:P100) -> 0 | Q101: =SUBTOTAL(9,Q98:Q100) -> 0

Sheet 普通明細
A1: コード | B1: 銀行支店名 | C1: 預金種目 | D1: 口座番号 | E1: 入金 | J1: 出金
E2: 入金先 | F2: 当日入金 | G2: 他店資金化 | H2: 資金移動 | I2: 未達 | J2: 支払先 | K2: 当日出金 | L2: 引落 | M2: 資金移動 | N2: 未達 | O2: 仮伝支払
A3: 110 | B3: 三菱UFJ横浜中央 | C3: 普通 | D3: 23938 | J3: 0170集中
J4: ﾃｽｳﾘﾖｳｻﾞﾝﾀﾞｶｼﾖｳﾒｲ
C6: 合計 | F6: =SUBTOTAL(9,F3:F5) -> 0 | G6: =SUBTOTAL(9,G3:G5) -> 0 | H6: =SUBTOTAL(9,H3:H5) -> 0 | I6: =SUBTOTAL(9,I3:I5) -> 0 | K6: =SUBTOTAL(9,K3:K5) -> 0 | L6: =SUBTOTAL(9,L3:L5) -> 0 | M6: =SUBTOTAL(9,M3:M5) -> 0 | N6: =SUBTOTAL(9,N3:N5) -> 0 | O6: =SUBTOTAL(9,O3:O5) -> 0
A7: 121 | B7: 三菱UFJ大阪営業部 | C7: 普通 | D7: 77361 | J7: 0170集中
J9: ﾃｽｳﾘﾖｳｻﾞﾝﾀﾞｶｼﾖｳﾒｲ
C10: 合計 | F10: =SUBTOTAL(9,F7:F9) -> 0 | G10: =SUBTOTAL(9,G7:G9) -> 0 | H10: =SUBTOTAL(9,H7:H9) -> 0 | I10: =SUBTOTAL(9,I7:I9) -> 0 | K10: =SUBTOTAL(9,K7:K9) -> 0 | L10: =SUBTOTAL(9,L7:L9) -> 0 | M10: =SUBTOTAL(9,M7:M9) -> 0 | N10: =SUBTOTAL(9,N7:N9) -> 0 | O10: =SUBTOTAL(9,O7:O9) -> 0
A11: 129 | B11: 三菱UFJ京都駅前 | C11: 普通 | D11: 4563066 | J11: 0170集中
B12: 2018/08解約 | J12: ﾃｽｳﾘﾖｳｻﾞﾝﾀﾞｶｼﾖｳﾒｲ
C14: 合計 | F14: =SUBTOTAL(9,F11:F13) -> 0 | G14: =SUBTOTAL(9,G11:G13) -> 0 | H14: =SUBTOTAL(9,H11:H13) -> 0 | I14: =SUBTOTAL(9,I11:I13) -> 0 | K14: =SUBTOTAL(9,K11:K13) -> 0 | L14: =SUBTOTAL(9,L11:L13) -> 0 | M14: =SUBTOTAL(9,M11:M13) -> 0 | N14: =SUBTOTAL(9,N11:N13) -> 0 | O14: =SUBTOTAL(9,O11:O13) -> 0
A15: 151 | B15: 三菱UFJ名古屋営業部 | C15: 普通 | D15: 4801778 | J15: 0170集中
J16: ﾃｽｳﾘﾖｳｻﾞﾝﾀﾞｶｼﾖｳﾒｲ
C18: 合計 | F18: =SUBTOTAL(9,F15:F17) -> 0 | G18: =SUBTOTAL(9,G15:G17) -> 0 | H18: =SUBTOTAL(9,H15:H17) -> 0 | I18: =SUBTOTAL(9,I15:I17) -> 0 | K18: =SUBTOTAL(9,K15:K17) -> 0 | L18: =SUBTOTAL(9,L15:L17) -> 0 | M18: =SUBTOTAL(9,M15:M17) -> 0 | N18: =SUBTOTAL(9,N15:N17) -> 0 | O18: =SUBTOTAL(9,O15:O17) -> 0
A19: 170 | B19: 三菱UFJ東京営業部 | C19: 普通 | D19: 1722828 | E19: 0170集中 | H19: 44530000 | J19: 0170当座 | M19: 45600000
J20: 0890当座
F21: 387007 | J21: 0230当座
J22: 1220普通
J23: 1300普通
J24: 1310普通
C39: 合計 | F39: =SUBTOTAL(9,F19:F38) -> 387007 | G39: =SUBTOTAL(9,G19:G38) -> 0 | H39: =SUBTOTAL(9,H19:H38) -> 44530000 | I39: =SUBTOTAL(9,I19:I38) -> 0 | K39: =SUM(K19:K38) -> 0 | L39: =SUBTOTAL(9,L20:L38) -> 0 | M39: =SUM(M19:M38) -> 45600000 | N39: =SUM(N19:N38) -> 0 | O39: =SUM(O19:O38) -> 0
A40: 177 | B40: 三菱UFJ東京営業部(汐留) | C40: 普通 | D40: 1803230 | J40: 0170集中
B41: 2018/08解約
C43: 合計 | F43: =SUBTOTAL(9,F40:F42) -> 0 | G43: =SUBTOTAL(9,G40:G42) -> 0 | H43: =SUBTOTAL(9,H40:H42) -> 0 | I43: =SUBTOTAL(9,I40:I42) -> 0 | K43: =SUBTOTAL(9,K40:K42) -> 0 | L43: =SUBTOTAL(9,L40:L42) -> 0 | M43: =SUBTOTAL(9,M40:M42) -> 0 | N43: =SUBTOTAL(9,N40:N42) -> 0 | O43: =SUBTOTAL(9,O40:O42) -> 0
A44: 179 | B44: 三菱UFJ東京為替集中 | C44: 普通 | D44: 1739665 | F44: 910722159 | J44: CMS0170当座 | M44: 910275135
C49: 合計 | F49: =SUBTOTAL(9,F44:F48) -> 910722159 | G49: =SUBTOTAL(9,G44:G48) -> 0 | H49: =SUBTOTAL(9,H44:H48) -> 0 | I49: =SUBTOTAL(9,I44:I48) -> 0 | K49: =SUBTOTAL(9,K44:K48) -> 0 | L49: =SUBTOTAL(9,L44:L48) -> 0 | M49: =SUBTOTAL(9,M44:M48) -> 910275135 | N49: =SUBTOTAL(9,N44:N48) -> 0 | O49: =SUBTOTAL(9,O44:O48) -> 0
A50: 210 | B50: 横浜本店 | C50: 普通 | D50: 78366 | F50: 22586760 | J50: 0170集中 | M50: 23000000
J51: ﾃｽｳﾘﾖｳｻﾞﾝﾀﾞｶｼﾖｳﾒｲｼﾖ
C53: 合計 | F53: =SUBTOTAL(9,F50:F52) -> 22586760 | G53: =SUBTOTAL(9,G50:G52) -> 0 | H53: =SUBTOTAL(9,H50:H52) -> 0 | I53: =SUBTOTAL(9,I50:I52) -> 0 | K53: =SUBTOTAL(9,K50:K52) -> 0 | L53: =SUBTOTAL(9,L50:L52) -> 0 | M53: =SUBTOTAL(9,M50:M52) -> 23000000 | N53: =SUBTOTAL(9,N50:N52) -> 0 | O53: =SUBTOTAL(9,O50:O52) -> 0
A54: 230 | B54: 横浜東京 | C54: 普通 | D54: 1404938 | E54: 0170当座 | J54: 0170集中
J55: ﾃｽｳﾘﾖｳｻﾞﾝﾀﾞｶｼﾖｳﾒｲｼﾖ
C58: 合計 | F58: =SUBTOTAL(9,F54:F56) -> 0 | G58: =SUBTOTAL(9,G54:G56) -> 0 | H58: =SUBTOTAL(9,H54:H56) -> 0 | I58: =SUBTOTAL(9,I54:I56) -> 0 | K58: =SUBTOTAL(9,K54:K57) -> 0 | L58: =SUBTOTAL(9,L54:L56) -> 0 | M58: =SUM(M54:M57) -> 0 | N58: =SUBTOTAL(9,N54:N56) -> 0 | O58: =SUBTOTAL(9,O54:O56) -> 0
C59: 普通
C62: 合計 | F62: =SUBTOTAL(9,F59:F61) -> 0 | G62: =SUBTOTAL(9,G59:G61) -> 0 | H62: =SUBTOTAL(9,H59:H61) -> 0 | I62: =SUBTOTAL(9,I59:I61) -> 0 | K62: =SUBTOTAL(9,K59:K61) -> 0 | L62: =SUBTOTAL(9,L59:L61) -> 0 | M62: =SUBTOTAL(9,M59:M61) -> 0 | N62: =SUBTOTAL(9,N59:N61) -> 0 | O62: =SUBTOTAL(9,O59:O61) -> 0
A63: 320 | B63: 三菱UFJ静岡 | C63: 普通 | D63: 318580
B64: 2015/07解約
C66: 合計 | F66: =SUBTOTAL(9,F63:F65) -> 0 | G66: =SUBTOTAL(9,G63:G65) -> 0 | H66: =SUBTOTAL(9,H63:H65) -> 0 | I66: =SUBTOTAL(9,I63:I65) -> 0 | K66: =SUBTOTAL(9,K63:K65) -> 0 | L66: =SUBTOTAL(9,L63:L65) -> 0 | M66: =SUBTOTAL(9,M63:M65) -> 0 | N66: =SUBTOTAL(9,N63:N65) -> 0 | O66: =SUBTOTAL(9,O63:O65) -> 0
A67: 340 | B67: 三菱UFJ青山通 | C67: 普通 | D67: 1219312 | F67: 16500 | J67: 0170集中 | M67: 20000
J68: ﾌﾘｺﾐﾃｽｳﾘﾖｳ
J69: ﾃﾞｲｽﾌﾟﾚｲﾎﾝ
C71: 合計 | F71: =SUBTOTAL(9,F67:F70) -> 16500 | G71: =SUBTOTAL(9,G67:G70) -> 0 | H71: =SUBTOTAL(9,H67:H70) -> 0 | I71: =SUBTOTAL(9,I67:I70) -> 0 | K71: =SUBTOTAL(9,K67:K70) -> 0 | L71: =SUBTOTAL(9,L67:L70) -> 0 | M71: =SUBTOTAL(9,M67:M70) -> 20000 | N71: =SUBTOTAL(9,N67:N70) -> 0 | O71: =SUBTOTAL(9,O67:O70) -> 0
A72: 450 | B72: 三菱UFJ信託本店 | C72: 普通 | D72: 1203996 | E72: 0170当座 | J72: FBﾃｽｳﾘﾖｳ(ANS)
B73: 2019/02解約
C75: 合計 | F75: =SUBTOTAL(9,F72:F74) -> 0 | G75: =SUBTOTAL(9,G72:G74) -> 0 | H75: =SUBTOTAL(9,H72:H74) -> 0 | I75: =SUBTOTAL(9,I72:I74) -> 0 | K75: =SUBTOTAL(9,K72:K74) -> 0 | M75: =SUBTOTAL(9,M72:M74) -> 0 | N75: =SUBTOTAL(9,N72:N74) -> 0 | O75: =SUBTOTAL(9,O72:O74) -> 0
A76: 451 | B76: 三菱UFJ東京営業部(ﾘﾊﾞﾃｨｰ) | C76: 普通 | D76: 603115 | J76: 0170集中
B77: 2018/08解約
C79: 合計 | F79: =SUBTOTAL(9,F76:F78) -> 0 | G79: =SUBTOTAL(9,G76:G78) -> 0 | H79: =SUBTOTAL(9,H76:H78) -> 0 | I79: =SUBTOTAL(9,I76:I78) -> 0 | K79: =SUBTOTAL(9,K76:K78) -> 0 | L79: =SUBTOTAL(9,L76:L78) -> 0 | M79: =SUBTOTAL(9,M76:M78) -> 0 | N79: =SUBTOTAL(9,N76:N78) -> 0 | O79: =SUBTOTAL(9,O76:O78) -> 0
A80: 720 | B80: みずほ銀座中央 | C80: 普通 | D80: 1342744 | F80: 2658626 | J80: 0170集中 | M80: 2660000
J82: ﾌﾘｺﾐﾃｽｳﾘﾖｳ | K82: 660
J83: ﾎ-ﾑﾕ-ｽﾃｽｳﾘﾖｳ
C84: 合計 | F84: =SUBTOTAL(9,F80:F83) -> 2658626 | G84: =SUBTOTAL(9,G80:G83) -> 0 | H84: =SUBTOTAL(9,H80:H83) -> 0 | I84: =SUBTOTAL(9,I80:I83) -> 0 | K84: =SUBTOTAL(9,K80:K83) -> 660 | L84: =SUBTOTAL(9,L80:L83) -> 0 | M84: =SUBTOTAL(9,M80:M83) -> 2660000 | N84: =SUBTOTAL(9,N80:N83) -> 0 | O84: =SUBTOTAL(9,O80:O83) -> 0
A85: 754 | B85: 埼玉りそな熊谷 | C85: 普通 | D85: 3723271 | J85: 0170集中
C88: 合計 | F88: =SUBTOTAL(9,F85:F87) -> 0 | G88: =SUBTOTAL(9,G85:G87) -> 0 | H88: =SUBTOTAL(9,H85:H87) -> 0 | I88: =SUBTOTAL(9,I85:I87) -> 0 | K88: =SUBTOTAL(9,K85:K87) -> 0 | L88: =SUBTOTAL(9,L85:L87) -> 0 | M88: =SUBTOTAL(9,M85:M87) -> 0 | N88: =SUBTOTAL(9,N85:N87) -> 0 | O88: =SUBTOTAL(9,O85:O87) -> 0
A89: 756 | B89: りそな九段 | C89: 普通 | D89: 1192903 | E89: 0170当座 | J89: 0170集中
J90: IBｴｲｱｲｼﾞ-ｿﾝｶﾞｲﾎｹ | K90: 616410
J91: ﾃｽｳﾘﾖｳﾌﾘｺﾐ
J92: ﾃｽｳﾘﾖｳﾎ-ﾑﾊﾞﾝｷﾝｸﾞ
J93: ﾃｽｳﾘﾖｳﾋﾞｼﾞﾈｽﾀﾞｲﾚｸﾄ
C98: 合計 | F98: =SUBTOTAL(9,F89:F97) -> 0 | G98: =SUBTOTAL(9,G89:G97) -> 0 | H98: =SUBTOTAL(9,H89:H97) -> 0 | I98: =SUBTOTAL(9,I89:I97) -> 0 | K98: =SUBTOTAL(9,K89:K97) -> 616410 | L98: =SUBTOTAL(9,L89:L97) -> 0 | M98: =SUBTOTAL(9,M89:M97) -> 0 | N98: =SUBTOTAL(9,N89:N97) -> 0 | O98: =SUBTOTAL(9,O89:O97) -> 0
A99: 800 | B99: 三井住友日比谷 | C99: 普通 | D99: 5058573 | E99: 0170当座
C102: 合計 | F102: =SUBTOTAL(9,F99:F101) -> 0 | G102: =SUBTOTAL(9,G99:G101) -> 0 | H102: =SUBTOTAL(9,H99:H101) -> 0 | I102: =SUBTOTAL(9,I99:I101) -> 0 | K102: =SUBTOTAL(9,K99:K101) -> 0 | L102: =SUBTOTAL(9,L99:L101) -> 0 | M102: =SUBTOTAL(9,M99:M101) -> 0 | N102: =SUBTOTAL(9,N99:N101) -> 0 | O102: =SUBTOTAL(9,O99:O101) -> 0
A103: 810 | B103: 三井住友日比谷C | C103: 普通 | D103: 7613533 | E103: 0170当座 | J103: 0170当座 | M103: 18900000
F104: 18920084 | J104: EBﾃｽｳﾘﾖｳ
J105: ﾌﾘｺﾐﾃｽｳﾘﾖｳ
C106: 合計 | F106: =SUBTOTAL(9,F103:F105) -> 18920084 | G106: =SUBTOTAL(9,G103:G105) -> 0 | H106: =SUBTOTAL(9,H103:H105) -> 0 | I106: =SUBTOTAL(9,I103:I105) -> 0 | K106: =SUBTOTAL(9,K103:K105) -> 0 | L106: =SUBTOTAL(9,L103:L105) -> 0 | M106: =SUBTOTAL(9,M103:M105) -> 18900000 | N106: =SUBTOTAL(9,N103:N105) -> 0 | O106: =SUBTOTAL(9,O103:O105) -> 0
A107: 890 | B107: 三井住友丸ノ内 | C107: 普通 | D107: 6576973 | E107: 0891当座 | J107: 0170当座
E108: 0170当座 | J108: ｷﾔﾂｼﾕｶ-ﾄﾞ
E109: 0810普通 | J109: ｶﾞｲｺｸｶﾝｹｲｶﾞｲﾀﾒﾁﾔｼﾞ27108143
E110: 1071普通
E111: 0890当座
C125: 合計 | F125: =SUBTOTAL(9,F107:F124) -> 0 | G125: =SUBTOTAL(9,G107:G124) -> 0 | H125: =SUBTOTAL(9,H107:H124) -> 0 | I125: =SUBTOTAL(9,I107:I124) -> 0 | K125: =SUBTOTAL(9,K107:K124) -> 0 | L125: =SUBTOTAL(9,L108:L124) -> 0 | M125: =SUBTOTAL(9,M107:M124) -> 0 | N125: =SUBTOTAL(9,N107:N124) -> 0 | O125: =SUBTOTAL(9,O107:O124) -> 0
A126: 910 | B126: みずほ東京営業部 | C126: 普通 | D126: 2011849 | F126: 8695730 | J126: 0170集中 | M126: 8700000
J127: ﾌﾘｺﾐﾄｳﾃｽｳﾘﾖｳ
C130: 合計 | F130: =SUBTOTAL(9,F126:F129) -> 8695730 | G130: =SUBTOTAL(9,G126:G129) -> 0 | H130: =SUBTOTAL(9,H126:H129) -> 0 | I130: =SUBTOTAL(9,I126:I129) -> 0 | K130: =SUBTOTAL(9,K126:K129) -> 0 | L130: =SUBTOTAL(9,L126:L129) -> 0 | M130: =SUBTOTAL(9,M126:M129) -> 8700000 | N130: =SUBTOTAL(9,N126:N129) -> 0 | O130: =SUBTOTAL(9,O126:O129) -> 0
A131: 920 | B131: みずほ四谷 | C131: 普通 | D131: 1135192 | E131: 0170当座
C135: 合計 | F135: =SUBTOTAL(9,F131:F134) -> 0 | G135: =SUBTOTAL(9,G131:G134) -> 0 | H135: =SUBTOTAL(9,H131:H134) -> 0 | I135: =SUBTOTAL(9,I131:I134) -> 0 | K135: =SUBTOTAL(9,K131:K134) -> 0 | L135: =SUBTOTAL(9,L131:L134) -> 0 | M135: =SUBTOTAL(9,M131:M134) -> 0 | N135: =SUBTOTAL(9,N131:N134) -> 0 | O135: =SUBTOTAL(9,O131:O134) -> 0
A136: 970 | B136: みずほ新所沢（狭山出張所） | C136: 普通 | D136: 2326621 | E136: 0170普通 | J136: 0170集中
J137: ﾎ-ﾑﾕ-ｽﾃｽｳﾘﾖｳ
C139: 合計 | F139: =SUBTOTAL(9,F136:F138) -> 0 | G139: =SUBTOTAL(9,G136:G138) -> 0 | H139: =SUBTOTAL(9,H136:H138) -> 0 | I139: =SUBTOTAL(9,I136:I138) -> 0 | K139: =SUBTOTAL(9,K136:K138) -> 0 | L139: =SUBTOTAL(9,L136:L138) -> 0 | M139: =SUBTOTAL(9,M136:M138) -> 0 | N139: =SUBTOTAL(9,N136:N138) -> 0 | O139: =SUBTOTAL(9,O136:O138) -> 0
A140: 1300 | B140: 武蔵野本店 | C140: 普通 | D140: 1234678 | E140: 0170普通 | J140: 0170集中
J141: 引き出し
J142: 手数料
C143: 合計 | F143: =SUBTOTAL(9,F140:F142) -> 0 | G143: =SUBTOTAL(9,G140:G142) -> 0 | H143: =SUBTOTAL(9,H140:H142) -> 0 | I143: =SUBTOTAL(9,I140:I142) -> 0 | K143: =SUBTOTAL(9,K140:K142) -> 0 | L143: =SUBTOTAL(9,L140:L142) -> 0 | M143: =SUBTOTAL(9,M140:M142) -> 0 | N143: =SUBTOTAL(9,N140:N142) -> 0 | O143: =SUBTOTAL(9,O140:O142) -> 0
A144: 1020 | B144: 足利芳賀 | C144: 普通 | D144: 2773323 | F144: 4072340 | J144: 0170集中 | M144: 5070000
J145: EBﾃｽｳﾘﾖｳ
J146: ﾌﾘｺﾐﾃｽｳﾘﾖｳ
C147: 合計 | F147: =SUBTOTAL(9,F144:F146) -> 4072340 | G147: =SUBTOTAL(9,G144:G146) -> 0 | H147: =SUBTOTAL(9,H144:H146) -> 0 | I147: =SUBTOTAL(9,I144:I146) -> 0 | K147: =SUBTOTAL(9,K144:K146) -> 0 | L147: =SUBTOTAL(9,L144:L146) -> 0 | M147: =SUBTOTAL(9,M144:M146) -> 5070000 | N147: =SUBTOTAL(9,N144:N146) -> 0 | O147: =SUBTOTAL(9,O144:O146) -> 0
A148: 1050 | B148: 七十七南町通 | C148: 普通 | D148: 142565 | J148: 0170集中
J149: ﾃｽｳﾘﾖｳHBﾃｽｳﾘﾖｳ
J150: 現金引き出し
C151: 合計 | F151: =SUBTOTAL(9,F148:F150) -> 0 | G151: =SUBTOTAL(9,G148:G150) -> 0 | H151: =SUBTOTAL(9,H148:H150) -> 0 | I151: =SUBTOTAL(9,I148:I150) -> 0 | K151: =SUBTOTAL(9,K148:K150) -> 0 | L151: =SUBTOTAL(9,L148:L150) -> 0 | M151: =SUBTOTAL(9,M148:M150) -> 0 | N151: =SUBTOTAL(9,N148:N150) -> 0 | O151: =SUBTOTAL(9,O148:O150) -> 0
A152: 1071 | B152: 三井住友京橋 | C152: 普通 | D152: 8304814 | F152: 39211540 | J152: 0170当座 | M152: 39200000
J153: 0810当座
C155: 合計 | F155: =SUBTOTAL(9,F152:F154) -> 39211540 | G155: =SUBTOTAL(9,G152:G154) -> 0 | H155: =SUBTOTAL(9,H152:H154) -> 0 | I155: =SUBTOTAL(9,I152:I154) -> 0 | K155: =SUBTOTAL(9,K152:K154) -> 0 | L155: =SUBTOTAL(9,L152:L154) -> 0 | M155: =SUBTOTAL(9,M152:M154) -> 39200000 | N155: =SUBTOTAL(9,N152:N154) -> 0 | O155: =SUBTOTAL(9,O152:O154) -> 0
A156: 1320 | B156: りそな九段 | C156: 普通 | D156: 1532892 | J156: 0170集中 | M156: 360000
C159: 合計 | F159: =SUBTOTAL(9,F156:F158) -> 0 | G159: =SUBTOTAL(9,G156:G158) -> 0 | H159: =SUBTOTAL(9,H156:H158) -> 0 | I159: =SUBTOTAL(9,I156:I158) -> 0 | K159: =SUBTOTAL(9,K156:K158) -> 0 | L159: =SUBTOTAL(9,L156:L158) -> 0 | M159: =SUBTOTAL(9,M156:M158) -> 360000 | N159: =SUBTOTAL(9,N156:N158) -> 0 | O159: =SUBTOTAL(9,O156:O158) -> 0
A160: 1310 | B160: 三菱UFJ東京営業部CASIO | C160: 普通 | J160: 0170集中
J161: FBﾃｽｳﾘﾖｳ
J162: ｻﾞﾝｼｮｳ
C165: 合計 | F165: =SUBTOTAL(9,F160:F164) -> 0 | G165: =SUBTOTAL(9,G160:G164) -> 0 | H165: =SUBTOTAL(9,H160:H164) -> 0 | I165: =SUBTOTAL(9,I160:I164) -> 0 | K165: =SUBTOTAL(9,K160:K164) -> 0 | L165: =SUBTOTAL(9,L160:L164) -> 0 | M165: =SUBTOTAL(9,M160:M164) -> 0 | N165: =SUBTOTAL(9,N160:N164) -> 0 | O165: =SUBTOTAL(9,O160:O164) -> 0
A166: 1110 | B166: 静岡東京 | C166: 普通 | D166: 274146 | J166: 0170集中
J167: ﾎｰﾑﾊﾞﾝｷﾝｸﾞﾃｽｳﾘﾖ
C170: 合計 | F170: =SUBTOTAL(9,F166:F169) -> 0 | G170: =SUBTOTAL(9,G166:G169) -> 0 | H170: =SUBTOTAL(9,H166:H169) -> 0 | I170: =SUBTOTAL(9,I166:I169) -> 0 | K170: =SUBTOTAL(9,K166:K169) -> 0 | L170: =SUBTOTAL(9,L166:L169) -> 0 | M170: =SUBTOTAL(9,M166:M169) -> 0 | N170: =SUBTOTAL(9,N166:N169) -> 0 | O170: =SUBTOTAL(9,O166:O169) -> 0
A171: 1120 | B171: 千葉興業銀行幕張ﾃｸﾉｶﾞｰﾃﾞﾝ | C171: 普通 | D171: 2568891 | E171: ATMﾆﾕｳｷﾝ | J171: 0170集中
J172: ﾌﾘｺﾐﾃｽｳﾘﾖｳ
J173: ﾏﾙﾁﾊﾞﾝｸｺｽﾓｽ
C174: 合計 | F174: =SUBTOTAL(9,F171:F173) -> 0 | G174: =SUBTOTAL(9,G171:G173) -> 0 | H174: =SUBTOTAL(9,H171:H173) -> 0 | I174: =SUBTOTAL(9,I171:I173) -> 0 | K174: =SUBTOTAL(9,K171:K173) -> 0 | L174: =SUBTOTAL(9,L171:L173) -> 0 | M174: =SUBTOTAL(9,M171:M173) -> 0 | N174: =SUBTOTAL(9,N171:N173) -> 0 | O174: =SUBTOTAL(9,O171:O173) -> 0
A175: 1130 | B175: 八十二諏訪 | C175: 普通 | D175: 891465 | F175: 2678936 | J175: 0170集中 | M175: 2820000
J176: FBﾃｽｳﾘﾖｳ
C178: 合計 | F178: =SUBTOTAL(9,F175:F177) -> 2678936 | G178: =SUBTOTAL(9,G175:G177) -> 0 | H178: =SUBTOTAL(9,H175:H177) -> 0 | I178: =SUBTOTAL(9,I175:I177) -> 0 | K178: =SUBTOTAL(9,K175:K177) -> 0 | L178: =SUBTOTAL(9,L175:L177) -> 0 | M178: =SUBTOTAL(9,M175:M177) -> 2820000 | N178: =SUBTOTAL(9,N175:N177) -> 0 | O178: =SUBTOTAL(9,O175:O177) -> 0
A179: 1150 | B179: 群馬太田市役所出張所 | C179: 普通 | D179: 276716 | J179: ﾃﾚﾎﾝﾌﾘｺﾐﾘﾖｳ
J180: ﾎ-ﾑﾕ-ｽ
C182: 合計 | F182: =SUBTOTAL(9,F179:F181) -> 0 | G182: =SUBTOTAL(9,G179:G181) -> 0 | H182: =SUBTOTAL(9,H179:H181) -> 0 | I182: =SUBTOTAL(9,I179:I181) -> 0 | K182: =SUBTOTAL(9,K179:K181) -> 0 | L182: =SUBTOTAL(9,L179:L181) -> 0 | M182: =SUBTOTAL(9,M179:M181) -> 0 | N182: =SUBTOTAL(9,N179:N181) -> 0 | O182: =SUBTOTAL(9,O179:O181) -> 0
A183: 1160 | B183: 福岡本店営業部 | C183: 普通 | D183: 5758570 | J183: 0170集中
J184: ﾃｽｳﾘﾖｳHT-VALUXｷﾎﾝ
J185: ﾃｽｳﾘﾖｳHT-VALUXﾌﾘｺﾐ
C187: 合計 | F187: =SUBTOTAL(9,F183:F186) -> 0 | G187: =SUBTOTAL(9,G183:G186) -> 0 | H187: =SUBTOTAL(9,H183:H186) -> 0 | I187: =SUBTOTAL(9,I183:I186) -> 0 | K187: =SUBTOTAL(9,K183:K186) -> 0 | L187: =SUBTOTAL(9,L183:L186) -> 0 | M187: =SUBTOTAL(9,M183:M186) -> 0 | N187: =SUBTOTAL(9,N183:N186) -> 0 | O187: =SUBTOTAL(9,O183:O186) -> 0
A188: 1170 | B188: 肥後大津 | C188: 普通 | D188: 1936464 | J188: 0170集中
J189: ﾃｽｳﾘﾖｳｼｷﾝｲﾄﾞｳﾃｽｳﾘﾖｳ
J190: ﾃｽｳﾘﾖｳPCｷﾎﾝﾃｽｳﾘﾖｳ
C193: 合計 | F193: =SUBTOTAL(9,F188:F192) -> 0 | G193: =SUBTOTAL(9,G188:G192) -> 0 | H193: =SUBTOTAL(9,H188:H192) -> 0 | I193: =SUBTOTAL(9,I188:I192) -> 0 | K193: =SUBTOTAL(9,K188:K192) -> 0 | L193: =SUBTOTAL(9,L188:L192) -> 0 | M193: =SUBTOTAL(9,M188:M192) -> 0 | N193: =SUBTOTAL(9,N188:N192) -> 0 | O193: =SUBTOTAL(9,O188:O192) -> 0
A194: 1180 | B194: 百十四銀行東京支店 | C194: 普通 | D194: 381413 | J194: 0170集中
J195: EBﾃｽｳﾘﾖｳﾃﾞｲｽﾌﾟﾚｲﾎﾝ
C197: 合計 | F197: =SUBTOTAL(9,F194:F196) -> 0 | G197: =SUBTOTAL(9,G194:G196) -> 0 | H197: =SUBTOTAL(9,H194:H196) -> 0 | I197: =SUBTOTAL(9,I194:I196) -> 0 | K197: =SUBTOTAL(9,K194:K196) -> 0 | L197: =SUBTOTAL(9,L194:L196) -> 0 | M197: =SUBTOTAL(9,M194:M196) -> 0 | N197: =SUBTOTAL(9,N194:N196) -> 0 | O197: =SUBTOTAL(9,O194:O196) -> 0
A198: 1190 | B198: 岡崎信用金庫名古屋支店 | C198: 普通 | D198: 9005918 | E198: AD | J198: 0170集中
J199: HBｷﾎﾝﾘﾖｳ
C201: 合計 | F201: =SUBTOTAL(9,F198:F200) -> 0 | G201: =SUBTOTAL(9,G198:G200) -> 0 | H201: =SUBTOTAL(9,H198:H200) -> 0 | I201: =SUBTOTAL(9,I198:I200) -> 0 | K201: =SUBTOTAL(9,K198:K200) -> 0 | L201: =SUBTOTAL(9,L198:L200) -> 0 | M201: =SUBTOTAL(9,M198:M200) -> 0 | N201: =SUBTOTAL(9,N198:N200) -> 0 | O201: =SUBTOTAL(9,O198:O200) -> 0
A202: 1200 | B202: 福岡銀行東京支店 | C202: 普通 | D202: 417721 | J202: 0170集中
J203: 0170普通
J204: ﾃｽｳﾘﾖｳHT-VALUXｷﾎﾝ
J205: ﾃｽｳﾘﾖｳHT-VALUXﾌﾘｺﾐ
C206: 合計 | F206: =SUBTOTAL(9,F202:F205) -> 0 | G206: =SUBTOTAL(9,G202:G205) -> 0 | H206: =SUBTOTAL(9,H202:H205) -> 0 | I206: =SUBTOTAL(9,I202:I205) -> 0 | K206: =SUBTOTAL(9,K202:K205) -> 0 | L206: =SUBTOTAL(9,L202:L205) -> 0 | M206: =SUBTOTAL(9,M202:M205) -> 0 | N206: =SUBTOTAL(9,N202:N205) -> 0 | O206: =SUBTOTAL(9,O202:O205) -> 0
A207: 1210 | B207: みずほ九段 | C207: 普通 | D207: 1473190 | J207: 0170集中
E208: 0170当座 | J208: 0170普通
J209: ﾎ-ﾑﾕ-ｽﾃｽｳﾘﾖｳ
J210: ﾌﾘｺﾐﾃｽｳﾘﾖｳ
C213: 合計 | F213: =SUBTOTAL(9,F207:F212) -> 0 | G213: =SUBTOTAL(9,G207:G212) -> 0 | H213: =SUBTOTAL(9,H207:H212) -> 0 | I213: =SUBTOTAL(9,I207:I212) -> 0 | K213: =SUBTOTAL(9,K207:K212) -> 0 | M213: =SUBTOTAL(9,M207:M212) -> 0 | N213: =SUBTOTAL(9,N207:N212) -> 0 | O213: =SUBTOTAL(9,O207:O212) -> 0
A214: 1220 | B214: 池田泉州東京 | C214: 普通 | D214: 8477 | E214: 0170普通 | J214: 0170集中 | M214: 220000
E215: 0170当座 | J215: WEBｶﾞｲﾀﾒｻ-ﾋﾞｽ
F216: 223140 | J216: FBﾘﾖｳﾃｽｳﾘﾖｳ
C217: 合計 | F217: =SUBTOTAL(9,F214:F216) -> 223140 | G217: =SUBTOTAL(9,G214:G216) -> 0 | H217: =SUBTOTAL(9,H214:H216) -> 0 | I217: =SUBTOTAL(9,I214:I216) -> 0 | K217: =SUBTOTAL(9,K214:K216) -> 0 | M217: =SUBTOTAL(9,M214:M216) -> 220000 | N217: =SUBTOTAL(9,N214:N216) -> 0 | O217: =SUBTOTAL(9,O214:O216) -> 0
A218: 2000 | B218: ゆうちょ銀行 | C218: 普通 | D218: 49973441 | E218: 0170当座 | J218: ﾌﾘｶｴｾﾞｲｷﾝ
E219: 利息 | J219: 伊東ｶﾞｽ
J220: 牧之原市
C221: 合計 | F221: =SUBTOTAL(9,F218:F220) -> 0 | G221: =SUBTOTAL(9,G218:G220) -> 0 | H221: =SUBTOTAL(9,H218:H220) -> 0 | I221: =SUBTOTAL(9,I218:I220) -> 0 | K221: =SUBTOTAL(9,K218:K220) -> 0 | L221: =SUBTOTAL(9,L218:L220) -> 0 | M221: =SUBTOTAL(9,M218:M220) -> 0 | N221: =SUBTOTAL(9,N218:N220) -> 0 | O221: =SUBTOTAL(9,O218:O220) -> 0

Sheet 外貨預金
A1: コード | B1: 銀行支店名 | C1: 預金種目 | D1: 口座番号 | E1: 入金 | H1: 出金
E2: 入金先 | F2: 当日入金 | G2: 資金移動 | H2: 支払先 | I2: 当日出金 | J2: 資金移動
A3: 170 | B3: 三菱東京UFJ東京営業部 | C3: ＵＳ＄普通 | D3: 6554861 | E3: 利息 | H3: 2月外貨評価換え
C4: 111301 | E4: 2月外貨評価換え | F4: 1
C5: 合計 | F5: =SUBTOTAL(9,F3:F4) -> 1 | G5: =SUBTOTAL(9,G3:G4) -> 0 | I5: =SUBTOTAL(9,I3:I4) -> 0 | J5: =SUBTOTAL(9,J3:J4) -> 0
A6: 170 | B6: 三菱東京UFJ東京営業部 | C6: ＨＫ＄普通 | D6: 1722760 | E6: 2月外貨評価換え | H6: 2月外貨評価換え
C7: 111401
C8: 合計 | F8: =SUBTOTAL(9,F6:F7) -> 0 | G8: =SUBTOTAL(9,G6:G7) -> 0 | I8: =SUBTOTAL(9,I6:I7) -> 0 | J8: =SUBTOTAL(9,J6:J7) -> 0
A9: 170 | B9: 三菱東京UFJ東京営業部 | C9: ￡普通 | D9: 1722802 | E9: 利息 | H9: 2月外貨評価換え
C10: 111501 | E10: 2月外貨評価換え
C12: 合計 | F12: =SUBTOTAL(9,F9:F10) -> 0 | G12: =SUBTOTAL(9,G9:G10) -> 0 | I12: =SUBTOTAL(9,I9:I10) -> 0 | J12: =SUBTOTAL(9,J9:J10) -> 0
A13: 170 | B13: 三菱東京UFJ東京営業部 | C13: ＥＵＲ普通 | D13: 1776444 | E13: 2月外貨評価換え | H13: 2月外貨評価換え
C14: 111601
C15: 合計 | F15: =SUBTOTAL(9,F13:F14) -> 0 | G15: =SUBTOTAL(9,G13:G14) -> 0 | I15: =SUBTOTAL(9,I13:I14) -> 0 | J15: =SUBTOTAL(9,J13:J14) -> 0
A16: 230 | B16: 横浜東京 | C16: ＵＳ＄普通 | D16: 1556151 | E16: 2月外貨評価換え | H16: 2月外貨評価換え
C17: 111302 | F17: 208
C18: 合計 | F18: =SUBTOTAL(9,F16:F17) -> 208 | G18: =SUBTOTAL(9,G16:G17) -> 0 | I18: =SUBTOTAL(9,I16:I17) -> 0 | J18: =SUBTOTAL(9,J16:J17) -> 0
A19: 890 | B19: 三井住友丸ノ内 | C19: ＵＳ＄普通 | D19: 6522283 | E19: 2月外貨評価換え | H19: 2月外貨評価換え
C20: 111303
C21: 合計 | F21: =SUBTOTAL(9,F19:F20) -> 0 | G21: =SUBTOTAL(9,G19:G20) -> 0 | I21: =SUBTOTAL(9,I19:I20) -> 0 | J21: =SUBTOTAL(9,J19:J20) -> 0
A22: 890 | B22: 三井住友丸ノ内 | C22: ＥＵＲ普通 | D22: 6522283 | E22: 利息 | H22: 2月外貨評価換え
C23: 111602 | E23: 2月外貨評価換え | F23: 2 | I23: 8
C24: 合計 | F24: =SUBTOTAL(9,F22:F23) -> 2 | G24: =SUBTOTAL(9,G22:G23) -> 0 | I24: =SUBTOTAL(9,I22:I23) -> 8 | J24: =SUBTOTAL(9,J22:J23) -> 0

Sheet 定期預金
A1: コード | B1: 銀行支店名 | C1: 預金種目 | D1: 口座番号 | E1: 入金 | H1: 出金
E2: 入金先 | F2: 当日入金 | G2: 資金移動 | H2: 支払先 | I2: 当日出金 | J2: 資金移動
A3: 170 | B3: 三菱東京UFJ東京営業部 | C3: 定期
C5: 合計 | F5: =SUBTOTAL(9,F3:F4) -> 0 | G5: =SUBTOTAL(9,G3:G4) -> 0 | I5: =SUBTOTAL(9,I3:I4) -> 0 | J5: =SUBTOTAL(9,J3:J4) -> 0

Sheet DEN
C1: X | D1: ← “X”を入力し、バッチインプットの処理モードを“E”で実行すると伝票概要画面で止まり、確認することが出来る
A2: 伝票日付 | B2: 会社 | C2: 転記日付 | D2: 伝票ﾀｲﾌﾟ | E2: 通貨ｺｰﾄﾞ | F2: 換算ﾚｰﾄ | G2: 参照伝票番号 | H2: ヘッダテキスト | I2: 税自動計算 | J2: 転記ｷｰ | K2: 勘定コード | L2: 特殊GL | M2: 金額 | N2: 国内通貨額 | O2: 税ｺｰﾄﾞ | P2: 事業領域 | Q2: 原価センタ | R2: 利益センタ | S2: ソートキー | T2: 明細テキスト | U2: 起算日 | V2: 期日 | W2: 振出日 | X2: 支払方法 | Y2: 支払保留 | Z2: 取引先銀行 | AA2: 取引銀行 | AB2: 中央銀行CD | AC2: 数量 | AD2: 数量単位 | AE2: 指図書 | AF2: ＷＢＳ | AG2: 得意先ｺｰﾄﾞ | AH2: 品目ｺｰﾄﾞ | AI2: 販売組織 | AJ2: 流通ﾁｬﾈﾙ | AK2: 製品部門 | AL2: 品目ｸﾞﾙｰﾌﾟ | AM2: 営業所 | AN2: 営業グループ | AO2: 需要家
A3: 2023.06.30 | B3: KS | C3: 2023.06.30 | D3: SA | E3: JPY | G3: 100095572 | H3: 資金移動 | I3: × | J3: 40 | K3: 111010 | M3: 1080485135 | P3: KS | S3: 2023.06.30 | T3: 06.30資金移動 | AP3: 1
J4: 40 | K4: 111020 | M4: 8250000 | P4: KS | S4: 2023.06.30 | T4: 06.30資金移動 | AP4: 2
J5: 40 | K5: 111012 | M5: 44530000 | P5: KS | S5: 2023.06.30 | T5: 06.30資金移動 | AP5: 3
J6: 50 | K6: 111050 | M6: 1680000 | P6: KS | S6: 2023.06.30 | T6: 06.30資金移動 | AP6: 4
J7: 50 | K7: 111010 | M7: 8250000 | P7: KS | S7: 2023.06.30 | T7: 06.30資金移動 | AP7: 5
J8: 50 | K8: 111040 | M8: 66510000 | P8: KS | S8: 2023.06.30 | T8: 06.30資金移動 | AP8: 6
J9: 50 | K9: 111012 | M9: 45600000 | P9: KS | S9: 2023.06.30 | T9: 06.30資金移動 | AP9: 7
J10: 50 | K10: 111102 | M10: 910275135 | P10: KS | S10: 2023.06.30 | T10: 06.30資金移動 | AP10: 8
J11: 50 | K11: 111206 | M11: 23000000 | P11: KS | S11: 2023.06.30 | T11: 06.30資金移動 | AP11: 9
J12: 50 | K12: 111209 | M12: 20000 | P12: KS | S12: 2023.06.30 | T12: 06.30資金移動 | AP12: 10
J13: 50 | K13: 111211 | M13: 2660000 | P13: KS | S13: 2023.06.30 | T13: 06.30資金移動 | AP13: 11
J14: 50 | K14: 111213 | M14: 18900000 | P14: KS | S14: 2023.06.30 | T14: 06.30資金移動 | AP14: 12
J15: 50 | K15: 111214 | M15: 8700000 | P15: KS | S15: 2023.06.30 | T15: 06.30資金移動 | AP15: 13
J16: 50 | K16: 111218 | M16: 5070000 | P16: KS | S16: 2023.06.30 | T16: 06.30資金移動 | AP16: 14
J17: 50 | K17: 111221 | M17: 39200000 | P17: KS | S17: 2023.06.30 | T17: 06.30資金移動 | AP17: 15
J18: 50 | K18: 111132 | M18: 360000 | P18: KS | S18: 2023.06.30 | T18: 06.30資金移動 | AP18: 16
J19: 50 | K19: 111225 | M19: 2820000 | P19: KS | S19: 2023.06.30 | T19: 06.30資金移動 | AP19: 17
J20: 50 | K20: 111122 | M20: 220000 | P20: KS | S20: 2023.06.30 | T20: 06.30資金移動 | AP20: 18
A21: eof
AQ198: 100040417

Sheet BI
A2: 伝票日付 | B2: 会社 | C2: 転記日付 | D2: 伝票ﾀｲﾌﾟ | E2: 通貨ｺｰﾄﾞ | F2: 換算ﾚｰﾄ | G2: 参照伝票番号 | H2: ヘッダテキスト | I2: 税自動計算 | J2: 転記ｷｰ | K2: 勘定コード | L2: 特殊GL | M2: 金額 | N2: 国内通貨額 | O2: 税ｺｰﾄﾞ | P2: 事業領域 | Q2: 原価センタ | R2: 利益センタ | S2: ソートキー | T2: 明細テキスト | U2: 起算日 | V2: 期日 | W2: 振出日 | X2: 支払方法 | Y2: 支払保留
A3: =出納日報!$B$3 -> 2023.06.30 | B3: KS | C3: =$A$3 -> 2023.06.30 | D3: SA | E3: JPY | H3: 資金移動 | I3: × | J3: =IF(M3="","",出納日報!A106) ->  | K3: =IF(M3="","",出納日報!B106) ->  | M3: =IF(出納日報!C106="","",出納日報!C106) ->  | P3: =IF(M3="","","KS") ->  | S3: =IF(M3="","",出納日報!$B$3) ->  | T3: =IF(M3="","",出納日報!D106) ->  | AP3: =IF(M3="","",出納日報!G106) -> 
J4: =IF(M4="","",出納日報!A107) -> 40 | K4: =IF(M4="","",出納日報!B107) -> 111010 | M4: =IF(出納日報!C107="","",出納日報!C107) -> 1080485135 | P4: =IF(M4="","","KS") -> KS | S4: =IF(M4="","",出納日報!$B$3) -> 2023.06.30 | T4: =IF(M4="","",出納日報!D107) -> 06.30資金移動 | AP4: =IF(M4="","",出納日報!G107) -> 1
J5: =IF(M5="","",出納日報!A108) ->  | K5: =IF(M5="","",出納日報!B108) ->  | M5: =IF(出納日報!C108="","",出納日報!C108) ->  | S5: =IF(M5="","",出納日報!$B$3) ->  | T5: =IF(M5="","",出納日報!D108) ->  | AP5: =IF(M5="","",出納日報!G108) -> 
J6: =IF(M6="","",出納日報!A109) -> 40 | K6: =IF(M6="","",出納日報!B109) -> 111020 | M6: =IF(出納日報!C109="","",出納日報!C109) -> 8250000 | P6: KS | S6: =IF(M6="","",出納日報!$B$3) -> 2023.06.30 | T6: =IF(M6="","",出納日報!D109) -> 06.30資金移動 | AP6: =IF(M6="","",出納日報!G109) -> 2
J7: =IF(M7="","",出納日報!A110) ->  | K7: =IF(M7="","",出納日報!B110) ->  | M7: =IF(出納日報!C110="","",出納日報!C110) ->  | S7: =IF(M7="","",出納日報!$B$3) ->  | T7: =IF(M7="","",出納日報!D110) ->  | AP7: =IF(M7="","",出納日報!G110) -> 
J8: =IF(M8="","",出納日報!A111) ->  | K8: =IF(M8="","",出納日報!B111) ->  | M8: =IF(出納日報!C111="","",出納日報!C111) ->  | S8: =IF(M8="","",出納日報!$B$3) ->  | T8: =IF(M8="","",出納日報!D111) ->  | AP8: =IF(M8="","",出納日報!G111) -> 
J9: =IF(M9="","",出納日報!A112) ->  | K9: =IF(M9="","",出納日報!B112) ->  | M9: =IF(出納日報!C112="","",出納日報!C112) ->  | S9: =IF(M9="","",出納日報!$B$3) ->  | T9: =IF(M9="","",出納日報!D112) ->  | AP9: =IF(M9="","",出納日報!G112) -> 
J10: =IF(M10="","",出納日報!A113) ->  | K10: =IF(M10="","",出納日報!B113) ->  | M10: =IF(出納日報!C113="","",出納日報!C113) ->  | S10: =IF(M10="","",出納日報!$B$3) ->  | T10: =IF(M10="","",出納日報!D113) ->  | AP10: =IF(M10="","",出納日報!G113) -> 
J11: =IF(M11="","",出納日報!A114) ->  | K11: =IF(M11="","",出納日報!B114) ->  | M11: =IF(出納日報!C114="","",出納日報!C114) ->  | S11: =IF(M11="","",出納日報!$B$3) ->  | T11: =IF(M11="","",出納日報!D114) ->  | AP11: =IF(M11="","",出納日報!G114) -> 
J12: =IF(M12="","",出納日報!A115) ->  | K12: =IF(M12="","",出納日報!B115) ->  | M12: =IF(出納日報!C115="","",出納日報!C115) ->  | S12: =IF(M12="","",出納日報!$B$3) ->  | T12: =IF(M12="","",出納日報!D115) ->  | AP12: =IF(M12="","",出納日報!G115) -> 
J13: =IF(M13="","",出納日報!A116) ->  | K13: =IF(M13="","",出納日報!B116) ->  | M13: =IF(出納日報!C116="","",出納日報!C116) ->  | S13: =IF(M13="","",出納日報!$B$3) ->  | T13: =IF(M13="","",出納日報!D116) ->  | AP13: =IF(M13="","",出納日報!G116) -> 
J14: =IF(M14="","",出納日報!A117) ->  | K14: =IF(M14="","",出納日報!B117) ->  | M14: =IF(出納日報!C117="","",出納日報!C117) ->  | S14: =IF(M14="","",出納日報!$B$3) ->  | T14: =IF(M14="","",出納日報!D117) ->  | AP14: =IF(M14="","",出納日報!G117) -> 
J15: =IF(M15="","",出納日報!A118) ->  | K15: =IF(M15="","",出納日報!B118) ->  | M15: =IF(出納日報!C118="","",出納日報!C118) ->  | S15: =IF(M15="","",出納日報!$B$3) ->  | T15: =IF(M15="","",出納日報!D118) ->  | AP15: =IF(M15="","",出納日報!G118) -> 
J16: =IF(M16="","",出納日報!A119) -> 40 | K16: =IF(M16="","",出納日報!B119) -> 111012 | M16: =IF(出納日報!C119="","",出納日報!C119) -> 44530000 | P16: KS | S16: =IF(M16="","",出納日報!$B$3) -> 2023.06.30 | T16: =IF(M16="","",出納日報!D119) -> 06.30資金移動 | AP16: =IF(M16="","",出納日報!G119) -> 3
J17: =IF(M17="","",出納日報!A120) ->  | K17: =IF(M17="","",出納日報!B120) ->  | M17: =IF(出納日報!C120="","",出納日報!C120) ->  | S17: =IF(M17="","",出納日報!$B$3) ->  | T17: =IF(M17="","",出納日報!D120) ->  | AP17: =IF(M17="","",出納日報!G120) -> 
J18: =IF(M18="","",出納日報!A121) ->  | K18: =IF(M18="","",出納日報!B121) ->  | M18: =IF(出納日報!C121="","",出納日報!C121) ->  | S18: =IF(M18="","",出納日報!$B$3) ->  | T18: =IF(M18="","",出納日報!D121) ->  | AP18: =IF(M18="","",出納日報!G121) -> 
J19: =IF(M19="","",出納日報!A122) ->  | K19: =IF(M19="","",出納日報!B122) ->  | M19: =IF(出納日報!C122="","",出納日報!C122) ->  | S19: =IF(M19="","",出納日報!$B$3) ->  | T19: =IF(M19="","",出納日報!D122) ->  | AP19: =IF(M19="","",出納日報!G122) -> 
J20: =IF(M20="","",出納日報!A123) ->  | K20: =IF(M20="","",出納日報!B123) ->  | M20: =IF(出納日報!C123="","",出納日報!C123) ->  | S20: =IF(M20="","",出納日報!$B$3) ->  | T20: =IF(M20="","",出納日報!D123) ->  | AP20: =IF(M20="","",出納日報!G123) -> 
J21: =IF(M21="","",出納日報!A124) ->  | K21: =IF(M21="","",出納日報!B124) ->  | M21: =IF(出納日報!C124="","",出納日報!C124) ->  | S21: =IF(M21="","",出納日報!$B$3) ->  | T21: =IF(M21="","",出納日報!D124) ->  | AP21: =IF(M21="","",出納日報!G124) -> 
J22: =IF(M22="","",出納日報!A125) ->  | K22: =IF(M22="","",出納日報!B125) ->  | M22: =IF(出納日報!C125="","",出納日報!C125) ->  | S22: =IF(M22="","",出納日報!$B$3) ->  | T22: =IF(M22="","",出納日報!D125) ->  | AP22: =IF(M22="","",出納日報!G125) -> 
J23: =IF(M23="","",出納日報!A126) ->  | K23: =IF(M23="","",出納日報!B126) ->  | M23: =IF(出納日報!C126="","",出納日報!C126) ->  | S23: =IF(M23="","",出納日報!$B$3) ->  | T23: =IF(M23="","",出納日報!D126) ->  | AP23: =IF(M23="","",出納日報!G126) -> 
J24: =IF(M24="","",出納日報!A127) ->  | K24: =IF(M24="","",出納日報!B127) ->  | M24: =IF(出納日報!C127="","",出納日報!C127) ->  | S24: =IF(M24="","",出納日報!$B$3) ->  | T24: =IF(M24="","",出納日報!D127) ->  | AP24: =IF(M24="","",出納日報!G127) -> 
J25: =IF(M25="","",出納日報!A128) ->  | K25: =IF(M25="","",出納日報!B128) ->  | M25: =IF(出納日報!C128="","",出納日報!C128) ->  | S25: =IF(M25="","",出納日報!$B$3) ->  | T25: =IF(M25="","",出納日報!D128) ->  | AP25: =IF(M25="","",出納日報!G128) -> 
J26: =IF(M26="","",出納日報!A129) ->  | K26: =IF(M26="","",出納日報!B129) ->  | M26: =IF(出納日報!C129="","",出納日報!C129) ->  | S26: =IF(M26="","",出納日報!$B$3) ->  | T26: =IF(M26="","",出納日報!D129) ->  | AP26: =IF(M26="","",出納日報!G129) -> 
J27: =IF(M27="","",出納日報!A130) ->  | K27: =IF(M27="","",出納日報!B130) ->  | M27: =IF(出納日報!C130="","",出納日報!C130) ->  | S27: =IF(M27="","",出納日報!$B$3) ->  | T27: =IF(M27="","",出納日報!D130) ->  | AP27: =IF(M27="","",出納日報!G130) -> 
J28: =IF(M28="","",出納日報!A131) ->  | K28: =IF(M28="","",出納日報!B131) ->  | M28: =IF(出納日報!C131="","",出納日報!C131) ->  | S28: =IF(M28="","",出納日報!$B$3) ->  | T28: =IF(M28="","",出納日報!D131) ->  | AP28: =IF(M28="","",出納日報!G131) -> 
J29: =IF(M29="","",出納日報!A132) ->  | K29: =IF(M29="","",出納日報!B132) ->  | M29: =IF(出納日報!C132="","",出納日報!C132) ->  | S29: =IF(M29="","",出納日報!$B$3) ->  | T29: =IF(M29="","",出納日報!D132) ->  | AP29: =IF(M29="","",出納日報!G132) -> 
J30: =IF(M30="","",出納日報!A133) ->  | K30: =IF(M30="","",出納日報!B133) ->  | M30: =IF(出納日報!C133="","",出納日報!C133) ->  | S30: =IF(M30="","",出納日報!$B$3) ->  | T30: =IF(M30="","",出納日報!D133) ->  | AP30: =IF(M30="","",出納日報!G133) -> 
J31: =IF(M31="","",出納日報!A134) ->  | K31: =IF(M31="","",出納日報!B134) ->  | M31: =IF(出納日報!C134="","",出納日報!C134) ->  | S31: =IF(M31="","",出納日報!$B$3) ->  | T31: =IF(M31="","",出納日報!D134) ->  | AP31: =IF(M31="","",出納日報!G134) -> 
J32: =IF(M32="","",出納日報!A135) ->  | K32: =IF(M32="","",出納日報!B135) ->  | M32: =IF(出納日報!C135="","",出納日報!C135) ->  | S32: =IF(M32="","",出納日報!$B$3) ->  | T32: =IF(M32="","",出納日報!D135) ->  | AP32: =IF(M32="","",出納日報!G135) -> 
J33: =IF(M33="","",出納日報!A136) ->  | K33: =IF(M33="","",出納日報!B136) ->  | M33: =IF(出納日報!C136="","",出納日報!C136) ->  | S33: =IF(M33="","",出納日報!$B$3) ->  | T33: =IF(M33="","",出納日報!D136) ->  | AP33: =IF(M33="","",出納日報!G136) -> 
J34: =IF(M34="","",出納日報!A137) ->  | K34: =IF(M34="","",出納日報!B137) ->  | M34: =IF(出納日報!C137="","",出納日報!C137) ->  | S34: =IF(M34="","",出納日報!$B$3) ->  | T34: =IF(M34="","",出納日報!D137) ->  | AP34: =IF(M34="","",出納日報!G137) -> 
J35: =IF(M35="","",出納日報!A138) ->  | K35: =IF(M35="","",出納日報!B138) ->  | M35: =IF(出納日報!C138="","",出納日報!C138) ->  | S35: =IF(M35="","",出納日報!$B$3) ->  | T35: =IF(M35="","",出納日報!D138) ->  | AP35: =IF(M35="","",出納日報!G138) -> 
J36: =IF(M36="","",出納日報!A139) ->  | K36: =IF(M36="","",出納日報!B139) ->  | M36: =IF(出納日報!C139="","",出納日報!C139) ->  | S36: =IF(M36="","",出納日報!$B$3) ->  | T36: =IF(M36="","",出納日報!D139) ->  | AP36: =IF(M36="","",出納日報!G139) -> 
J37: =IF(M37="","",出納日報!A140) ->  | K37: =IF(M37="","",出納日報!B140) ->  | M37: =IF(出納日報!C140="","",出納日報!C140) ->  | S37: =IF(M37="","",出納日報!$B$3) ->  | T37: =IF(M37="","",出納日報!D140) ->  | AP37: =IF(M37="","",出納日報!G140) -> 
J38: =IF(M38="","",出納日報!A141) ->  | K38: =IF(M38="","",出納日報!B141) ->  | M38: =IF(出納日報!C141="","",出納日報!C141) ->  | S38: =IF(M38="","",出納日報!$B$3) ->  | T38: =IF(M38="","",出納日報!D141) ->  | AP38: =IF(M38="","",出納日報!G141) -> 
J39: =IF(M39="","",出納日報!A142) ->  | K39: =IF(M39="","",出納日報!B142) ->  | M39: =IF(出納日報!C142="","",出納日報!C142) ->  | S39: =IF(M39="","",出納日報!$B$3) ->  | T39: =IF(M39="","",出納日報!D142) ->  | AP39: =IF(M39="","",出納日報!G142) -> 
J40: =IF(M40="","",出納日報!A143) ->  | K40: =IF(M40="","",出納日報!B143) ->  | M40: =IF(出納日報!C143="","",出納日報!C143) ->  | S40: =IF(M40="","",出納日報!$B$3) ->  | T40: =IF(M40="","",出納日報!D143) ->  | AP40: =IF(M40="","",出納日報!G143) -> 
J41: =IF(M41="","",出納日報!A144) ->  | K41: =IF(M41="","",出納日報!B144) ->  | M41: =IF(出納日報!C144="","",出納日報!C144) ->  | S41: =IF(M41="","",出納日報!$B$3) ->  | T41: =IF(M41="","",出納日報!D144) ->  | AP41: =IF(M41="","",出納日報!G144) -> 
J42: =IF(M42="","",出納日報!A145) ->  | K42: =IF(M42="","",出納日報!B145) ->  | M42: =IF(出納日報!C145="","",出納日報!C145) ->  | S42: =IF(M42="","",出納日報!$B$3) ->  | T42: =IF(M42="","",出納日報!D145) ->  | AP42: =IF(M42="","",出納日報!G145) -> 
J43: =IF(M43="","",出納日報!A146) ->  | K43: =IF(M43="","",出納日報!B146) ->  | M43: =IF(出納日報!C146="","",出納日報!C146) ->  | S43: =IF(M43="","",出納日報!$B$3) ->  | T43: =IF(M43="","",出納日報!D146) ->  | AP43: =IF(M43="","",出納日報!G146) -> 
J44: =IF(M44="","",出納日報!A147) ->  | K44: =IF(M44="","",出納日報!B147) ->  | M44: =IF(出納日報!C147="","",出納日報!C147) ->  | S44: =IF(M44="","",出納日報!$B$3) ->  | T44: =IF(M44="","",出納日報!D147) ->  | AP44: =IF(M44="","",出納日報!G147) -> 
J45: =IF(M45="","",出納日報!A148) ->  | K45: =IF(M45="","",出納日報!B148) ->  | M45: =IF(出納日報!C148="","",出納日報!C148) ->  | P45: =IF(M45="","","KS") ->  | S45: =IF(M45="","",出納日報!$B$3) ->  | T45: =IF(M45="","",出納日報!D148) ->  | AP45: =IF(M45="","",出納日報!G148) -> 
J46: =IF(M46="","",出納日報!A149) ->  | K46: =IF(M46="","",出納日報!B149) ->  | M46: =IF(出納日報!C149="","",出納日報!C149) ->  | S46: =IF(M46="","",出納日報!$B$3) ->  | T46: =IF(M46="","",出納日報!D149) ->  | AP46: =IF(M46="","",出納日報!G149) -> 
J47: =IF(M47="","",出納日報!A150) ->  | K47: =IF(M47="","",出納日報!B150) ->  | M47: =IF(出納日報!C150="","",出納日報!C150) ->  | S47: =IF(M47="","",出納日報!$B$3) ->  | T47: =IF(M47="","",出納日報!D150) ->  | AP47: =IF(M47="","",出納日報!G150) -> 
J48: =IF(M48="","",出納日報!A151) ->  | K48: =IF(M48="","",出納日報!B151) ->  | M48: =IF(出納日報!C151="","",出納日報!C151) ->  | S48: =IF(M48="","",出納日報!$B$3) ->  | T48: =IF(M48="","",出納日報!D151) ->  | AP48: =IF(M48="","",出納日報!G151) -> 
J49: =IF(M49="","",出納日報!A152) ->  | K49: =IF(M49="","",出納日報!B152) ->  | M49: =IF(出納日報!C152="","",出納日報!C152) ->  | S49: =IF(M49="","",出納日報!$B$3) ->  | T49: =IF(M49="","",出納日報!D152) ->  | AP49: =IF(M49="","",出納日報!G152) -> 
J50: =IF(M50="","",出納日報!A153) ->  | K50: =IF(M50="","",出納日報!B153) ->  | M50: =IF(出納日報!C153="","",出納日報!C153) ->  | P50: =IF(M50="","","KS") ->  | S50: =IF(M50="","",出納日報!$B$3) ->  | T50: =IF(M50="","",出納日報!D153) ->  | AP50: =IF(M50="","",出納日報!G153) -> 
J51: =IF(M51="","",出納日報!A154) ->  | K51: =IF(M51="","",出納日報!B154) ->  | M51: =IF(出納日報!C154="","",出納日報!C154) ->  | S51: =IF(M51="","",出納日報!$B$3) ->  | T51: =IF(M51="","",出納日報!D154) ->  | AP51: =IF(M51="","",出納日報!G154) -> 
J52: =IF(M52="","",出納日報!A155) ->  | K52: =IF(M52="","",出納日報!B155) ->  | M52: =IF(出納日報!C155="","",出納日報!C155) ->  | P52: =IF(M52="","","KS") ->  | S52: =IF(M52="","",出納日報!$B$3) ->  | T52: =IF(M52="","",出納日報!D155) ->  | AP52: =IF(M52="","",出納日報!G155) -> 
J53: =IF(M53="","",出納日報!A156) ->  | K53: =IF(M53="","",出納日報!B156) ->  | M53: =IF(出納日報!C156="","",出納日報!C156) ->  | P53: =IF(M53="","","KS") ->  | S53: =IF(M53="","",出納日報!$B$3) ->  | T53: =IF(M53="","",出納日報!D156) ->  | AP53: =IF(M53="","",出納日報!G156) -> 
J54: =IF(M54="","",出納日報!A157) ->  | K54: =IF(M54="","",出納日報!B157) ->  | M54: =IF(出納日報!C157="","",出納日報!C157) ->  | S54: =IF(M54="","",出納日報!$B$3) ->  | T54: =IF(M54="","",出納日報!D157) ->  | AP54: =IF(M54="","",出納日報!G157) -> 
J55: =IF(M55="","",出納日報!A158) ->  | K55: =IF(M55="","",出納日報!B158) ->  | M55: =IF(出納日報!C158="","",出納日報!C158) ->  | S55: =IF(M55="","",出納日報!$B$3) ->  | T55: =IF(M55="","",出納日報!D158) ->  | AP55: =IF(M55="","",出納日報!G158) -> 
J56: =IF(M56="","",出納日報!A159) ->  | K56: =IF(M56="","",出納日報!B159) ->  | M56: =IF(出納日報!C159="","",出納日報!C159) ->  | S56: =IF(M56="","",出納日報!$B$3) ->  | T56: =IF(M56="","",出納日報!D159) ->  | AP56: =IF(M56="","",出納日報!G159) -> 
J57: =IF(M57="","",出納日報!A160) ->  | K57: =IF(M57="","",出納日報!B160) ->  | M57: =IF(出納日報!C160="","",出納日報!C160) ->  | S57: =IF(M57="","",出納日報!$B$3) ->  | T57: =IF(M57="","",出納日報!D160) ->  | AP57: =IF(M57="","",出納日報!G160) -> 
J58: =IF(M58="","",出納日報!A161) ->  | K58: =IF(M58="","",出納日報!B161) ->  | M58: =IF(出納日報!C161="","",出納日報!C161) ->  | S58: =IF(M58="","",出納日報!$B$3) ->  | T58: =IF(M58="","",出納日報!D161) ->  | AP58: =IF(M58="","",出納日報!G161) -> 
J59: =IF(M59="","",出納日報!A162) ->  | K59: =IF(M59="","",出納日報!B162) ->  | M59: =IF(出納日報!C162="","",出納日報!C162) ->  | S59: =IF(M59="","",出納日報!$B$3) ->  | T59: =IF(M59="","",出納日報!D162) ->  | AP59: =IF(M59="","",出納日報!G162) -> 
J60: =IF(M60="","",出納日報!A163) ->  | K60: =IF(M60="","",出納日報!B163) ->  | M60: =IF(出納日報!C163="","",出納日報!C163) ->  | S60: =IF(M60="","",出納日報!$B$3) ->  | T60: =IF(M60="","",出納日報!D163) ->  | AP60: =IF(M60="","",出納日報!G163) -> 
J61: =IF(M61="","",出納日報!A164) ->  | K61: =IF(M61="","",出納日報!B164) ->  | M61: =IF(出納日報!C164="","",出納日報!C164) ->  | S61: =IF(M61="","",出納日報!$B$3) ->  | T61: =IF(M61="","",出納日報!D164) ->  | AP61: =IF(M61="","",出納日報!G164) -> 
J62: =IF(M62="","",出納日報!A165) ->  | K62: =IF(M62="","",出納日報!B165) ->  | M62: =IF(出納日報!C165="","",出納日報!C165) ->  | S62: =IF(M62="","",出納日報!$B$3) ->  | T62: =IF(M62="","",出納日報!D165) ->  | AP62: =IF(M62="","",出納日報!G165) -> 
J63: =IF(M63="","",出納日報!A166) ->  | K63: =IF(M63="","",出納日報!B166) ->  | M63: =IF(出納日報!C166="","",出納日報!C166) ->  | S63: =IF(M63="","",出納日報!$B$3) ->  | T63: =IF(M63="","",出納日報!D166) ->  | AP63: =IF(M63="","",出納日報!G166) -> 
J64: =IF(M64="","",出納日報!A167) ->  | K64: =IF(M64="","",出納日報!B167) ->  | M64: =IF(出納日報!C167="","",出納日報!C167) ->  | S64: =IF(M64="","",出納日報!$B$3) ->  | T64: =IF(M64="","",出納日報!D167) ->  | AP64: =IF(M64="","",出納日報!G167) -> 
J65: =IF(M65="","",出納日報!A168) ->  | K65: =IF(M65="","",出納日報!B168) ->  | M65: =IF(出納日報!C168="","",出納日報!C168) ->  | S65: =IF(M65="","",出納日報!$B$3) ->  | T65: =IF(M65="","",出納日報!D168) ->  | AP65: =IF(M65="","",出納日報!G168) -> 
J66: =IF(M66="","",出納日報!A169) ->  | K66: =IF(M66="","",出納日報!B169) ->  | M66: =IF(出納日報!C169="","",出納日報!C169) ->  | S66: =IF(M66="","",出納日報!$B$3) ->  | T66: =IF(M66="","",出納日報!D169) ->  | AP66: =IF(M66="","",出納日報!G169) -> 
J67: =IF(M67="","",出納日報!A170) -> 50 | K67: =IF(M67="","",出納日報!B170) -> 111050 | M67: =IF(出納日報!C170="","",出納日報!C170) -> 1680000 | P67: KS | S67: =IF(M67="","",出納日報!$B$3) -> 2023.06.30 | T67: =IF(M67="","",出納日報!D170) -> 06.30資金移動 | AP67: =IF(M67="","",出納日報!G170) -> 4
J68: =IF(M68="","",出納日報!A171) -> 50 | K68: =IF(M68="","",出納日報!B171) -> 111010 | M68: =IF(出納日報!C171="","",出納日報!C171) -> 8250000 | P68: KS | S68: =IF(M68="","",出納日報!$B$3) -> 2023.06.30 | T68: =IF(M68="","",出納日報!D171) -> 06.30資金移動 | AP68: =IF(M68="","",出納日報!G171) -> 5
J69: =IF(M69="","",出納日報!A172) ->  | K69: =IF(M69="","",出納日報!B172) ->  | M69: =IF(出納日報!C172="","",出納日報!C172) ->  | S69: =IF(M69="","",出納日報!$B$3) ->  | T69: =IF(M69="","",出納日報!D172) ->  | AP69: =IF(M69="","",出納日報!G172) -> 
J70: =IF(M70="","",出納日報!A173) ->  | K70: =IF(M70="","",出納日報!B173) ->  | M70: =IF(出納日報!C173="","",出納日報!C173) ->  | S70: =IF(M70="","",出納日報!$B$3) ->  | T70: =IF(M70="","",出納日報!D173) ->  | AP70: =IF(M70="","",出納日報!G173) -> 
J71: =IF(M71="","",出納日報!A174) ->  | K71: =IF(M71="","",出納日報!B174) ->  | M71: =IF(出納日報!C174="","",出納日報!C174) ->  | S71: =IF(M71="","",出納日報!$B$3) ->  | T71: =IF(M71="","",出納日報!D174) ->  | AP71: =IF(M71="","",出納日報!G174) -> 
J72: =IF(M72="","",出納日報!A175) ->  | K72: =IF(M72="","",出納日報!B175) ->  | M72: =IF(出納日報!C175="","",出納日報!C175) ->  | S72: =IF(M72="","",出納日報!$B$3) ->  | T72: =IF(M72="","",出納日報!D175) ->  | AP72: =IF(M72="","",出納日報!G175) -> 
J73: =IF(M73="","",出納日報!A176) ->  | K73: =IF(M73="","",出納日報!B176) ->  | M73: =IF(出納日報!C176="","",出納日報!C176) ->  | S73: =IF(M73="","",出納日報!$B$3) ->  | T73: =IF(M73="","",出納日報!D176) ->  | AP73: =IF(M73="","",出納日報!G176) -> 
J74: =IF(M74="","",出納日報!A177) -> 50 | K74: =IF(M74="","",出納日報!B177) -> 111040 | M74: =IF(出納日報!C177="","",出納日報!C177) -> 66510000 | P74: KS | S74: =IF(M74="","",出納日報!$B$3) -> 2023.06.30 | T74: =IF(M74="","",出納日報!D177) -> 06.30資金移動 | AP74: =IF(M74="","",出納日報!G177) -> 6
J75: =IF(M75="","",出納日報!A178) ->  | K75: =IF(M75="","",出納日報!B178) ->  | M75: =IF(出納日報!C178="","",出納日報!C178) ->  | S75: =IF(M75="","",出納日報!$B$3) ->  | T75: =IF(M75="","",出納日報!D178) ->  | AP75: =IF(M75="","",出納日報!G178) -> 
J76: =IF(M76="","",出納日報!A179) ->  | K76: =IF(M76="","",出納日報!B179) ->  | M76: =IF(出納日報!C179="","",出納日報!C179) ->  | S76: =IF(M76="","",出納日報!$B$3) ->  | T76: =IF(M76="","",出納日報!D179) ->  | AP76: =IF(M76="","",出納日報!G179) -> 
J77: =IF(M77="","",出納日報!A180) ->  | K77: =IF(M77="","",出納日報!B180) ->  | M77: =IF(出納日報!C180="","",出納日報!C180) ->  | S77: =IF(M77="","",出納日報!$B$3) ->  | T77: =IF(M77="","",出納日報!D180) ->  | AP77: =IF(M77="","",出納日報!G180) -> 
J78: =IF(M78="","",出納日報!A181) ->  | K78: =IF(M78="","",出納日報!B181) ->  | M78: =IF(出納日報!C181="","",出納日報!C181) ->  | S78: =IF(M78="","",出納日報!$B$3) ->  | T78: =IF(M78="","",出納日報!D181) ->  | AP78: =IF(M78="","",出納日報!G181) -> 
J79: =IF(M79="","",出納日報!A182) ->  | K79: =IF(M79="","",出納日報!B182) ->  | M79: =IF(出納日報!C182="","",出納日報!C182) ->  | S79: =IF(M79="","",出納日報!$B$3) ->  | T79: =IF(M79="","",出納日報!D182) ->  | AP79: =IF(M79="","",出納日報!G182) -> 
J80: =IF(M80="","",出納日報!A183) -> 50 | K80: =IF(M80="","",出納日報!B183) -> 111012 | M80: =IF(出納日報!C183="","",出納日報!C183) -> 45600000 | P80: KS | S80: =IF(M80="","",出納日報!$B$3) -> 2023.06.30 | T80: =IF(M80="","",出納日報!D183) -> 06.30資金移動 | AP80: =IF(M80="","",出納日報!G183) -> 7
J81: =IF(M81="","",出納日報!A184) ->  | K81: =IF(M81="","",出納日報!B184) ->  | M81: =IF(出納日報!C184="","",出納日報!C184) ->  | S81: =IF(M81="","",出納日報!$B$3) ->  | T81: =IF(M81="","",出納日報!D184) ->  | AP81: =IF(M81="","",出納日報!G184) -> 
J82: =IF(M82="","",出納日報!A185) -> 50 | K82: =IF(M82="","",出納日報!B185) -> 111102 | M82: =IF(出納日報!C185="","",出納日報!C185) -> 910275135 | P82: KS | S82: =IF(M82="","",出納日報!$B$3) -> 2023.06.30 | T82: =IF(M82="","",出納日報!D185) -> 06.30資金移動 | AP82: =IF(M82="","",出納日報!G185) -> 8
J83: =IF(M83="","",出納日報!A186) -> 50 | K83: =IF(M83="","",出納日報!B186) -> 111206 | M83: =IF(出納日報!C186="","",出納日報!C186) -> 23000000 | P83: KS | S83: =IF(M83="","",出納日報!$B$3) -> 2023.06.30 | T83: =IF(M83="","",出納日報!D186) -> 06.30資金移動 | AP83: =IF(M83="","",出納日報!G186) -> 9
J84: =IF(M84="","",出納日報!A187) ->  | K84: =IF(M84="","",出納日報!B187) ->  | M84: =IF(出納日報!C187="","",出納日報!C187) ->  | S84: =IF(M84="","",出納日報!$B$3) ->  | T84: =IF(M84="","",出納日報!D187) ->  | AP84: =IF(M84="","",出納日報!G187) -> 
J85: =IF(M85="","",出納日報!A188) ->  | K85: =IF(M85="","",出納日報!B188) ->  | M85: =IF(出納日報!C188="","",出納日報!C188) ->  | S85: =IF(M85="","",出納日報!$B$3) ->  | T85: =IF(M85="","",出納日報!D188) ->  | AP85: =IF(M85="","",出納日報!G188) -> 
J86: =IF(M86="","",出納日報!A189) ->  | K86: =IF(M86="","",出納日報!B189) ->  | M86: =IF(出納日報!C189="","",出納日報!C189) ->  | S86: =IF(M86="","",出納日報!$B$3) ->  | T86: =IF(M86="","",出納日報!D189) ->  | AP86: =IF(M86="","",出納日報!G189) -> 
J87: =IF(M87="","",出納日報!A190) -> 50 | K87: =IF(M87="","",出納日報!B190) -> 111209 | M87: =IF(出納日報!C190="","",出納日報!C190) -> 20000 | P87: KS | S87: =IF(M87="","",出納日報!$B$3) -> 2023.06.30 | T87: =IF(M87="","",出納日報!D190) -> 06.30資金移動 | AP87: =IF(M87="","",出納日報!G190) -> 10
J88: =IF(M88="","",出納日報!A191) ->  | K88: =IF(M88="","",出納日報!B191) ->  | M88: =IF(出納日報!C191="","",出納日報!C191) ->  | S88: =IF(M88="","",出納日報!$B$3) ->  | T88: =IF(M88="","",出納日報!D191) ->  | AP88: =IF(M88="","",出納日報!G191) -> 
J89: =IF(M89="","",出納日報!A192) ->  | K89: =IF(M89="","",出納日報!B192) ->  | M89: =IF(出納日報!C192="","",出納日報!C192) ->  | S89: =IF(M89="","",出納日報!$B$3) ->  | T89: =IF(M89="","",出納日報!D192) ->  | AP89: =IF(M89="","",出納日報!G192) -> 
J90: =IF(M90="","",出納日報!A193) -> 50 | K90: =IF(M90="","",出納日報!B193) -> 111211 | M90: =IF(出納日報!C193="","",出納日報!C193) -> 2660000 | P90: KS | S90: =IF(M90="","",出納日報!$B$3) -> 2023.06.30 | T90: =IF(M90="","",出納日報!D193) -> 06.30資金移動 | AP90: =IF(M90="","",出納日報!G193) -> 11
J91: =IF(M91="","",出納日報!A194) ->  | K91: =IF(M91="","",出納日報!B194) ->  | M91: =IF(出納日報!C194="","",出納日報!C194) ->  | S91: =IF(M91="","",出納日報!$B$3) ->  | T91: =IF(M91="","",出納日報!D194) ->  | AP91: =IF(M91="","",出納日報!G194) -> 
J92: =IF(M92="","",出納日報!A195) ->  | K92: =IF(M92="","",出納日報!B195) ->  | M92: =IF(出納日報!C195="","",出納日報!C195) ->  | S92: =IF(M92="","",出納日報!$B$3) ->  | T92: =IF(M92="","",出納日報!D195) ->  | AP92: =IF(M92="","",出納日報!G195) -> 
J93: =IF(M93="","",出納日報!A196) ->  | K93: =IF(M93="","",出納日報!B196) ->  | M93: =IF(出納日報!C196="","",出納日報!C196) ->  | S93: =IF(M93="","",出納日報!$B$3) ->  | T93: =IF(M93="","",出納日報!D196) ->  | AP93: =IF(M93="","",出納日報!G196) -> 
J94: =IF(M94="","",出納日報!A197) -> 50 | K94: =IF(M94="","",出納日報!B197) -> 111213 | M94: =IF(出納日報!C197="","",出納日報!C197) -> 18900000 | P94: KS | S94: =IF(M94="","",出納日報!$B$3) -> 2023.06.30 | T94: =IF(M94="","",出納日報!D197) -> 06.30資金移動 | AP94: =IF(M94="","",出納日報!G197) -> 12
J95: =IF(M95="","",出納日報!A198) ->  | K95: =IF(M95="","",出納日報!B198) ->  | M95: =IF(出納日報!C198="","",出納日報!C198) ->  | S95: =IF(M95="","",出納日報!$B$3) ->  | T95: =IF(M95="","",出納日報!D198) ->  | AP95: =IF(M95="","",出納日報!G198) -> 
J96: =IF(M96="","",出納日報!A199) -> 50 | K96: =IF(M96="","",出納日報!B199) -> 111214 | M96: =IF(出納日報!C199="","",出納日報!C199) -> 8700000 | P96: KS | S96: =IF(M96="","",出納日報!$B$3) -> 2023.06.30 | T96: =IF(M96="","",出納日報!D199) -> 06.30資金移動 | AP96: =IF(M96="","",出納日報!G199) -> 13
J97: =IF(M97="","",出納日報!A200) ->  | K97: =IF(M97="","",出納日報!B200) ->  | M97: =IF(出納日報!C200="","",出納日報!C200) ->  | S97: =IF(M97="","",出納日報!$B$3) ->  | T97: =IF(M97="","",出納日報!D200) ->  | AP97: =IF(M97="","",出納日報!G200) -> 
J98: =IF(M98="","",出納日報!A201) ->  | K98: =IF(M98="","",出納日報!B201) ->  | M98: =IF(出納日報!C201="","",出納日報!C201) ->  | S98: =IF(M98="","",出納日報!$B$3) ->  | T98: =IF(M98="","",出納日報!D201) ->  | AP98: =IF(M98="","",出納日報!G201) -> 
J99: =IF(M99="","",出納日報!A202) ->  | K99: =IF(M99="","",出納日報!B202) ->  | M99: =IF(出納日報!C202="","",出納日報!C202) ->  | S99: =IF(M99="","",出納日報!$B$3) ->  | T99: =IF(M99="","",出納日報!D202) ->  | AP99: =IF(M99="","",出納日報!G202) -> 
J100: =IF(M100="","",出納日報!A203) -> 50 | K100: =IF(M100="","",出納日報!B203) -> 111218 | M100: =IF(出納日報!C203="","",出納日報!C203) -> 5070000 | P100: KS | S100: =IF(M100="","",出納日報!$B$3) -> 2023.06.30 | T100: =IF(M100="","",出納日報!D203) -> 06.30資金移動 | AP100: =IF(M100="","",出納日報!G203) -> 14
J101: =IF(M101="","",出納日報!A204) ->  | K101: =IF(M101="","",出納日報!B204) ->  | M101: =IF(出納日報!C204="","",出納日報!C204) ->  | S101: =IF(M101="","",出納日報!$B$3) ->  | T101: =IF(M101="","",出納日報!D204) ->  | AP101: =IF(M101="","",出納日報!G204) -> 
J102: =IF(M102="","",出納日報!A205) -> 50 | K102: =IF(M102="","",出納日報!B205) -> 111221 | M102: =IF(出納日報!C205="","",出納日報!C205) -> 39200000 | P102: KS | S102: =IF(M102="","",出納日報!$B$3) -> 2023.06.30 | T102: =IF(M102="","",出納日報!D205) -> 06.30資金移動 | AP102: =IF(M102="","",出納日報!G205) -> 15
J103: =IF(M103="","",出納日報!A206) -> 50 | K103: =IF(M103="","",出納日報!B206) -> 111132 | M103: =IF(出納日報!C206="","",出納日報!C206) -> 360000 | P103: KS | S103: =IF(M103="","",出納日報!$B$3) -> 2023.06.30 | T103: =IF(M103="","",出納日報!D206) -> 06.30資金移動 | AP103: =IF(M103="","",出納日報!G206) -> 16
J104: =IF(M104="","",出納日報!A207) ->  | K104: =IF(M104="","",出納日報!B207) ->  | M104: =IF(出納日報!C207="","",出納日報!C207) ->  | S104: =IF(M104="","",出納日報!$B$3) ->  | T104: =IF(M104="","",出納日報!D207) ->  | AP104: =IF(M104="","",出納日報!G207) -> 
J105: =IF(M105="","",出納日報!A208) ->  | K105: =IF(M105="","",出納日報!B208) ->  | M105: =IF(出納日報!C208="","",出納日報!C208) ->  | S105: =IF(M105="","",出納日報!$B$3) ->  | T105: =IF(M105="","",出納日報!D208) ->  | AP105: =IF(M105="","",出納日報!G208) -> 
J106: =IF(M106="","",出納日報!A209) ->  | K106: =IF(M106="","",出納日報!B209) ->  | M106: =IF(出納日報!C209="","",出納日報!C209) ->  | S106: =IF(M106="","",出納日報!$B$3) ->  | T106: =IF(M106="","",出納日報!D209) ->  | AP106: =IF(M106="","",出納日報!G209) -> 
J107: =IF(M107="","",出納日報!A210) -> 50 | K107: =IF(M107="","",出納日報!B210) -> 111225 | M107: =IF(出納日報!C210="","",出納日報!C210) -> 2820000 | P107: KS | S107: =IF(M107="","",出納日報!$B$3) -> 2023.06.30 | T107: =IF(M107="","",出納日報!D210) -> 06.30資金移動 | AP107: =IF(M107="","",出納日報!G210) -> 17
J108: =IF(M108="","",出納日報!A211) ->  | K108: =IF(M108="","",出納日報!B211) ->  | M108: =IF(出納日報!C211="","",出納日報!C211) ->  | S108: =IF(M108="","",出納日報!$B$3) ->  | T108: =IF(M108="","",出納日報!D211) ->  | AP108: =IF(M108="","",出納日報!G211) -> 
J109: =IF(M109="","",出納日報!A212) ->  | K109: =IF(M109="","",出納日報!B212) ->  | M109: =IF(出納日報!C212="","",出納日報!C212) ->  | S109: =IF(M109="","",出納日報!$B$3) ->  | T109: =IF(M109="","",出納日報!D212) ->  | AP109: =IF(M109="","",出納日報!G212) -> 
J110: =IF(M110="","",出納日報!A213) ->  | K110: =IF(M110="","",出納日報!B213) ->  | M110: =IF(出納日報!C213="","",出納日報!C213) ->  | S110: =IF(M110="","",出納日報!$B$3) ->  | T110: =IF(M110="","",出納日報!D213) ->  | AP110: =IF(M110="","",出納日報!G213) -> 
J111: =IF(M111="","",出納日報!A214) ->  | K111: =IF(M111="","",出納日報!B214) ->  | M111: =IF(出納日報!C214="","",出納日報!C214) ->  | P111: =IF(M111="","","KS") ->  | S111: =IF(M111="","",出納日報!$B$3) ->  | T111: =IF(M111="","",出納日報!D214) ->  | AP111: =IF(M111="","",出納日報!G214) -> 
J112: =IF(M112="","",出納日報!A215) ->  | K112: =IF(M112="","",出納日報!B215) ->  | M112: =IF(出納日報!C215="","",出納日報!C215) ->  | S112: =IF(M112="","",出納日報!$B$3) ->  | T112: =IF(M112="","",出納日報!D215) ->  | AP112: =IF(M112="","",出納日報!G215) -> 
J113: =IF(M113="","",出納日報!A216) ->  | K113: =IF(M113="","",出納日報!B216) ->  | M113: =IF(出納日報!C216="","",出納日報!C216) ->  | S113: =IF(M113="","",出納日報!$B$3) ->  | T113: =IF(M113="","",出納日報!D216) ->  | AP113: =IF(M113="","",出納日報!G216) -> 
J114: =IF(M114="","",出納日報!A217) ->  | K114: =IF(M114="","",出納日報!B217) ->  | M114: =IF(出納日報!C217="","",出納日報!C217) ->  | P114: =IF(M114="","","KS") ->  | S114: =IF(M114="","",出納日報!$B$3) ->  | T114: =IF(M114="","",出納日報!D217) ->  | AP114: =IF(M114="","",出納日報!G217) -> 
J115: =IF(M115="","",出納日報!A218) -> 50 | K115: =IF(M115="","",出納日報!B218) -> 111122 | M115: =IF(出納日報!C218="","",出納日報!C218) -> 220000 | P115: KS | S115: =IF(M115="","",出納日報!$B$3) -> 2023.06.30 | T115: =IF(M115="","",出納日報!D218) -> 06.30資金移動 | AP115: =IF(M115="","",出納日報!G218) -> 18
J116: =IF(M116="","",出納日報!A219) ->  | K116: =IF(M116="","",出納日報!B219) ->  | M116: =IF(出納日報!C219="","",出納日報!C219) ->  | S116: =IF(M116="","",出納日報!$B$3) ->  | T116: =IF(M116="","",出納日報!D219) ->  | AP116: =IF(M116="","",出納日報!G219) -> 
J117: =IF(M117="","",出納日報!A220) ->  | K117: =IF(M117="","",出納日報!B220) ->  | M117: =IF(出納日報!C220="","",出納日報!C220) ->  | S117: =IF(M117="","",出納日報!$B$3) ->  | T117: =IF(M117="","",出納日報!D220) ->  | AP117: =IF(M117="","",出納日報!G220) -> 
J118: =IF(M118="","",出納日報!A221) ->  | K118: =IF(M118="","",出納日報!B221) ->  | M118: =IF(出納日報!C221="","",出納日報!C221) ->  | S118: =IF(M118="","",出納日報!$B$3) ->  | T118: =IF(M118="","",出納日報!D221) ->  | AP118: =IF(M118="","",出納日報!G221) -> 
J119: =IF(M119="","",出納日報!A222) ->  | K119: =IF(M119="","",出納日報!B222) ->  | M119: =IF(出納日報!C222="","",出納日報!C222) ->  | S119: =IF(M119="","",出納日報!$B$3) ->  | T119: =IF(M119="","",出納日報!D222) ->  | AP119: =IF(M119="","",出納日報!G222) -> 
J120: =IF(M120="","",出納日報!A223) ->  | K120: =IF(M120="","",出納日報!B223) ->  | M120: =IF(出納日報!C223="","",出納日報!C223) ->  | P120: =IF(M120="","","KS") ->  | S120: =IF(M120="","",出納日報!$B$3) ->  | T120: =IF(M120="","",出納日報!D223) ->  | AP120: =IF(M120="","",出納日報!G223) -> 
J121: =IF(M121="","",出納日報!A224) ->  | K121: =IF(M121="","",出納日報!B224) ->  | M121: =IF(出納日報!C224="","",出納日報!C224) ->  | S121: =IF(M121="","",出納日報!$B$3) ->  | T121: =IF(M121="","",出納日報!D224) ->  | AP121: =IF(M121="","",出納日報!G224) -> 
J122: =IF(M122="","",出納日報!A225) ->  | K122: =IF(M122="","",出納日報!B225) ->  | M122: =IF(出納日報!C225="","",出納日報!C225) ->  | S122: =IF(M122="","",出納日報!$B$3) ->  | T122: =IF(M122="","",出納日報!D225) ->  | AP122: =IF(M122="","",出納日報!G225) -> 
J123: =IF(M123="","",出納日報!A226) ->  | K123: =IF(M123="","",出納日報!B226) ->  | M123: =IF(出納日報!C226="","",出納日報!C226) ->  | S123: =IF(M123="","",出納日報!$B$3) ->  | T123: =IF(M123="","",出納日報!D226) ->  | AP123: =IF(M123="","",出納日報!G226) -> 
J124: =IF(M124="","",出納日報!A227) ->  | K124: =IF(M124="","",出納日報!B227) ->  | M124: =IF(出納日報!C227="","",出納日報!C227) ->  | S124: =IF(M124="","",出納日報!$B$3) ->  | T124: =IF(M124="","",出納日報!D227) ->  | AP124: =IF(M124="","",出納日報!G227) -> 
J125: =IF(M125="","",出納日報!A228) ->  | K125: =IF(M125="","",出納日報!B228) ->  | M125: =IF(出納日報!C228="","",出納日報!C228) ->  | S125: =IF(M125="","",出納日報!$B$3) ->  | T125: =IF(M125="","",出納日報!D228) ->  | AP125: =IF(M125="","",出納日報!G228) -> 
J126: =IF(M126="","",出納日報!A229) ->  | K126: =IF(M126="","",出納日報!B229) ->  | M126: =IF(出納日報!C229="","",出納日報!C229) ->  | S126: =IF(M126="","",出納日報!$B$3) ->  | T126: =IF(M126="","",出納日報!D229) ->  | AP126: =IF(M126="","",出納日報!G229) -> 
J127: =IF(M127="","",出納日報!A230) ->  | K127: =IF(M127="","",出納日報!B230) ->  | M127: =IF(出納日報!C230="","",出納日報!C230) ->  | S127: =IF(M127="","",出納日報!$B$3) ->  | T127: =IF(M127="","",出納日報!D230) ->  | AP127: =IF(M127="","",出納日報!G230) -> 
J128: =IF(M128="","",出納日報!A231) ->  | K128: =IF(M128="","",出納日報!B231) ->  | M128: =IF(出納日報!C231="","",出納日報!C231) ->  | S128: =IF(M128="","",出納日報!$B$3) ->  | T128: =IF(M128="","",出納日報!D231) ->  | AP128: =IF(M128="","",出納日報!G231) -> 
J129: =IF(M129="","",出納日報!A232) ->  | K129: =IF(M129="","",出納日報!B232) ->  | M129: =IF(出納日報!C232="","",出納日報!C232) ->  | S129: =IF(M129="","",出納日報!$B$3) ->  | T129: =IF(M129="","",出納日報!D232) ->  | AP129: =IF(M129="","",出納日報!G232) -> 
J130: =IF(M130="","",出納日報!A233) ->  | K130: =IF(M130="","",出納日報!B233) ->  | M130: =IF(出納日報!C233="","",出納日報!C233) ->  | S130: =IF(M130="","",出納日報!$B$3) ->  | T130: =IF(M130="","",出納日報!D233) ->  | AP130: =IF(M130="","",出納日報!G233) -> 

Sheet BTIN (hidden)
A1: 識別 | B1: ﾌﾗｸﾞ | C1: 入力項目名 | D1: 入力値 | E1: 列 | F1: 画面項目名 | H1: INDEX
A2: P-01 | D2: 一般勘定－明細 | H2: P-01 | I2: 3
A3: 2 | C3: RF05A-NEWBS | E3: J | F3: 転記キー | H3: P-02 | I3: 22
A4: 2 | C4: RF05A-NEWKO | E4: K | F4: 勘定コード | H4: P-03 | I4: 46
A5: 2 | C5: BDC_OKCODE | D5: /00 | H5: P-04 | I5: 67
A6: 1 | B6: # | C6: SAPLKACB | D6: 0002 | H6: P-05 | I6: 85
A7: 2 | B7: # | C7: BDC_OKCODE | D7: /00 | H7: P-06 | I7: 108
A8: 1 | C8: SAPMF05A | D8: 0300 | H8: P-07 | I8: 125
A9: 2 | C9: BSEG-WRBTR | E9: M | F9: 金額 | H9: P-08 | I9: 142
A10: 2 | C10: BSEG-DMBTR | E10: N | F10: 国内通貨額 | H10: P-09 | I10: 159
A11: 2 | C11: BSEG-MWSKZ | E11: O | F11: 消費税コード | H11: P-10 | I11: 181
A12: 2 | C12: BSEG-VALUT | E12: U | F12: 起算日 | H12: P-11 | I12: 206
A13: 2 | C13: BSEG-ZUONR | E13: S | F13: ソートキー | H13: P-12 | I13: 246
A14: 2 | C14: BSEG-SGTXT | E14: T | F14: 明細テキスト | H14: P-13 | I14: 261
A15: 2 | C15: BDC_OKCODE | D15: /00 | H15: P-14 | I15: 278
A16: 1 | C16: SAPLKACB | D16: 0002
A17: 2 | C17: COBL-GSBER | E17: P | F17: 事業領域
A18: 2 | C18: BDC_OKCODE | D18: /00
A19: 1 | C19: SAPMF05A | D19: 0300
A20: eof
A21: P-02 | D21: 原価要素－明細
A22: 2 | C22: RF05A-NEWBS | E22: J | F22: 転記キー
A23: 2 | C23: RF05A-NEWKO | E23: K | F23: 勘定コード
A24: 2 | C24: BDC_OKCODE | D24: /00
A25: 1 | B25: # | C25: SAPLKACB | D25: 0002
A26: 2 | B26: # | C26: BDC_OKCODE | D26: /00
A27: 1 | C27: SAPMF05A | D27: 0300
A28: 2 | C28: BSEG-WRBTR | E28: M | F28: 金額
A29: 2 | C29: BSEG-DMBTR | E29: N | F29: 国内通貨額
A30: 2 | C30: BSEG-MWSKZ | E30: O | F30: 消費税コード
A31: 2 | C31: BSEG-ZUONR | E31: S | F31: ソートキー
A32: 2 | C32: BSEG-SGTXT | E32: T | F32: 明細テキスト
A33: 2 | C33: BSEG-MENGE | E33: AC | F33: 数量
A34: 2 | C34: BSEG-MEINS | E34: AD | F34: 数量単位
A35: 2 | C35: BDC_OKCODE | D35: /00
A36: 1 | C36: SAPLKACB | D36: 0002
A37: 2 | C37: COBL-GSBER | E37: P | F37: 事業領域
A38: 2 | C38: COBL-KOSTL | E38: Q | F38: 原価センタ
A39: 2 | C39: COBL-PRCTR | E39: R | F39: 利益センタ
A40: 2 | C40: COBL-AUFNR | E40: AE | F40: 指図書
A41: 2 | C41: COBL-PS_PSP_PNR | E41: AF | F41: ＷＢＳ要素
A42: 2 | C42: BDC_OKCODE | D42: /00
A43: 1 | C43: SAPMF05A | D43: 0300
A44: eof
A45: P-03 | D45: 棚卸資産－明細
A46: 2 | C46: RF05A-NEWBS | E46: J | F46: 転記キー
A47: 2 | C47: RF05A-NEWKO | E47: K | F47: 勘定コード
A48: 2 | C48: BDC_OKCODE | D48: /00
A49: 1 | B49: # | C49: SAPLKACB | D49: 0002
A50: 2 | B50: # | C50: BDC_OKCODE | D50: /00
A51: 1 | C51: SAPMF05A | D51: 0300
A52: 2 | C52: BSEG-WRBTR | E52: M | F52: 金額
A53: 2 | C53: BSEG-DMBTR | E53: N | F53: 国内通貨額
A54: 2 | C54: BSEG-MWSKZ | E54: O | F54: 消費税コード
A55: 2 | C55: BSEG-VALUT | E55: U | F55: 起算日
A56: 2 | C56: BSEG-ZUONR | E56: S | F56: ソートキー
A57: 2 | C57: BSEG-SGTXT | E57: T | F57: 明細テキスト
A58: 2 | C58: BSEG-MENGE | E58: AC | F58: 数量
A59: 2 | C59: BSEG-MEINS | E59: AD | F59: 数量単位
A60: 2 | C60: BDC_OKCODE | D60: /00
A61: 1 | C61: SAPLKACB | D61: 0002
A62: 2 | C62: COBL-GSBER | E62: P | F62: 事業領域
A63: 2 | C63: BDC_OKCODE | D63: /00
A64: 1 | C64: SAPMF05A | D64: 0300
A65: eof
A66: P-04 | D66: 売掛金－明細
A67: 2 | C67: RF05A-NEWBS | E67: J | F67: 転記キー
A68: 2 | C68: RF05A-NEWKO | E68: K | F68: 勘定コード
A69: 2 | C69: BDC_OKCODE | D69: /00
A70: 1 | B70: # | C70: SAPLKACB | D70: 0002
A71: 2 | B71: # | C71: BDC_OKCODE | D71: /00
A72: 1 | C72: SAPMF05A | D72: 0301
A73: 2 | C73: BSEG-WRBTR | E73: M | F73: 金額
A74: 2 | C74: BSEG-DMBTR | E74: N | F74: 国内通貨額
A75: 2 | C75: BSEG-MWSKZ | D75: **
A76: 2 | C76: BSEG-GSBER | E76: P | F76: 事業領域
A77: 2 | C77: BSEG-ZFBDT | E77: V | F77: 支払基準日
A78: 2 | C78: BSEG-ZLSCH | E78: X | F78: 支払方法
A79: 2 | B79: * | C79: BSEG-ZTERM | F79: 支払条件
A80: 2 | C80: BSEG-ZLSPR | E80: Y | F80: 支払保留
A81: 2 | C81: BSEG-ZUONR | E81: S | F81: ソートキー
A82: 2 | C82: BSEG-SGTXT | E82: T | F82: 明細テキスト
A83: eof
A84: P-05 | D84: 買掛金－明細
A85: 2 | C85: RF05A-NEWBS | E85: J | F85: 転記キー
A86: 2 | C86: RF05A-NEWKO | E86: K | F86: 勘定コード
A87: 2 | C87: BDC_OKCODE | D87: /00
A88: 1 | B88: # | C88: SAPLKACB | D88: 0002
A89: 2 | B89: # | C89: BDC_OKCODE | D89: /00
A90: 1 | C90: SAPMF05A | D90: 0302
A91: 2 | C91: BSEG-WRBTR | E91: M | F91: 金額
A92: 2 | C92: BSEG-DMBTR | E92: N | F92: 国内通貨額
A93: 2 | C93: BSEG-MWSKZ | D93: **
A94: 2 | C94: BSEG-GSBER | E94: P | F94: 事業領域
A95: 2 | C95: BSEG-ZFBDT | E95: V | F95: 支払基準日
A96: 2 | C96: BSEG-ZLSCH | E96: X | F96: 支払方法
A97: 2 | B97: * | C97: BSEG-ZTERM | F97: 支払条件
A98: 2 | C98: BSEG-ZLSPR | E98: Y | F98: 支払保留
A99: 2 | C99: BSEG-ZUONR | E99: S | F99: ソートキー
A100: 2 | C100: BSEG-SGTXT | E100: T | F100: 明細テキスト
A101: 2 | C101: BDC_OKCODE | D101: /07
A102: 1 | C102: SAPMF05A | D102: 0332
A103: 2 | C103: BSEG-BVTYP | E103: Z | F103: 取引先銀行
A104: 2 | C104: BSEG-HBKID | E104: AA | F104: 取引銀行
A105: 2 | C105: BSEG-LZBKZ | E105: AB | F105: 中央銀行CD
A106: eof
A107: P-06 | D107: 受取手形－明細
A108: 2 | C108: RF05A-NEWBS | E108: J | F108: 転記キー
A109: 2 | C109: RF05A-NEWKO | E109: K | F109: 勘定コード
A110: 2 | C110: RF05A-NEWUM | E110: L | F110: 特殊G/L
A111: 2 | C111: BDC_OKCODE | D111: /00
A112: 1 | B112: # | C112: SAPLKACB | D112: 0002
A113: 2 | B113: # | C113: BDC_OKCODE | D113: /00
A114: 1 | C114: SAPMF05A | D114: 2320
A115: 2 | C115: BSEG-WRBTR | E115: M | F115: 金額
A116: 2 | C116: BSEG-DMBTR | E116: N | F116: 国内通貨額
A117: 2 | C117: BSEG-GSBER | E117: P | F117: 事業領域
A118: 2 | C118: BSEG-ZUONR | E118: S | F118: ソートキー
A119: 2 | C119: BSEG-SGTXT | E119: T | F119: 明細テキスト
A120: 2 | C120: BSEG-ZFBDT | E120: V | F120: 期日
A121: 2 | C121: BSED-WDATE | E121: W | F121: 振出日
A122: 2 | C122: BSEG-ZLSCH | E122: X | F122: 支払方法
A123: eof
A124: P-07 | D124: 支払手形－明細
A125: 2 | C125: RF05A-NEWBS | E125: J | F125: 転記キー
A126: 2 | C126: RF05A-NEWKO | E126: K | F126: 勘定コード
A127: 2 | C127: RF05A-NEWUM | E127: L | F127: 特殊G/L
A128: 2 | C128: BDC_OKCODE | D128: /00
A129: 1 | B129: # | C129: SAPLKACB | D129: 0002
A130: 2 | B130: # | C130: BDC_OKCODE | D130: /00
A131: 1 | C131: SAPMF05A | D131: 2320
A132: 2 | C132: BSEG-WRBTR | E132: M | F132: 金額
A133: 2 | C133: BSEG-DMBTR | E133: N | F133: 国内通貨額
A134: 2 | C134: BSEG-GSBER | E134: P | F134: 事業領域
A135: 2 | C135: BSEG-ZUONR | E135: S | F135: ソートキー
A136: 2 | C136: BSEG-SGTXT | E136: T | F136: 明細テキスト
A137: 2 | C137: BSEG-ZFBDT | E137: V | F137: 期日
A138: 2 | C138: BSED-WDATE | E138: W | F138: 振出日
A139: 2 | C139: BSEG-ZLSCH | E139: X | F139: 支払方法
A140: eof
A141: P-08 | D141: 得意先(特殊仕訳)－明細
A142: 2 | C142: RF05A-NEWBS | E142: J | F142: 転記キー
A143: 2 | C143: RF05A-NEWKO | E143: K | F143: 勘定コード
A144: 2 | C144: RF05A-NEWUM | E144: L | F144: 特殊G/L
A145: 2 | C145: BDC_OKCODE | D145: /00
A146: 1 | B146: # | C146: SAPLKACB | D146: 0002
A147: 2 | B147: # | C147: BDC_OKCODE | D147: /00
A148: 1 | C148: SAPMF05A | D148: 0303
A149: 2 | C149: BSEG-WRBTR | E149: M | F149: 金額
A150: 2 | C150: BSEG-DMBTR | E150: N | F150: 国内通貨額
A151: 2 | C151: BSEG-GSBER | E151: P | F151: 事業領域
A152: 2 | C152: BSEG-ZFBDT | E152: V | F152: 期日
A153: 2 | C153: BSEG-ZLSCH | E153: X | F153: 支払方法
A154: 2 | C154: BSEG-ZLSPR | E154: Y | F154: 支払保留
A155: 2 | C155: BSEG-ZUONR | E155: S | F155: ソートキー
A156: 2 | C156: BSEG-SGTXT | E156: T | F156: 明細テキスト
A157: eof
A158: P-09 | D158: 仕入先(特殊仕訳)－明細
A159: 2 | C159: RF05A-NEWBS | E159: J | F159: 転記キー
A160: 2 | C160: RF05A-NEWKO | E160: K | F160: 勘定コード
A161: 2 | C161: RF05A-NEWUM | E161: L | F161: 特殊G/L
A162: 2 | C162: BDC_OKCODE | D162: /00
A163: 1 | B163: # | C163: SAPLKACB | D163: 0002
A164: 2 | B164: # | C164: BDC_OKCODE | D164: /00
A165: 1 | C165: SAPMF05A | D165: 0303
A166: 2 | C166: BSEG-WRBTR | E166: M | F166: 金額
A167: 2 | C167: BSEG-DMBTR | E167: N | F167: 国内通貨額
A168: 2 | C168: BSEG-GSBER | E168: P | F168: 事業領域
A169: 2 | C169: BSEG-ZFBDT | E169: V | F169: 期日
A170: 2 | C170: BSEG-ZLSCH | E170: X | F170: 支払方法
A171: 2 | C171: BSEG-ZLSPR | E171: Y | F171: 支払保留
A172: 2 | C172: BSEG-ZUONR | E172: S | F172: ソートキー
A173: 2 | C173: BSEG-SGTXT | E173: T | F173: 明細テキスト
A174: 2 | C174: BDC_OKCODE | D174: /07
A175: 1 | C175: SAPMF05A | D175: 0332
A176: 2 | C176: BSEG-BVTYP | E176: Z | F176: 取引先銀行
A177: 2 | C177: BSEG-HBKID | E177: AA | F177: 取引銀行
A178: 2 | C178: BSEG-LZBKZ | E178: AB | F178: 中央銀行CD
A179: eof
A180: P-10 | D180: 収益・費用－明細
A181: 2 | C181: RF05A-NEWBS | E181: J | F181: 転記キー
A182: 2 | C182: RF05A-NEWKO | E182: K | F182: 勘定コード
A183: 2 | C183: BDC_OKCODE | D183: /00
A184: 1 | B184: # | C184: SAPLKACB | D184: 0002
A185: 2 | B185: # | C185: BDC_OKCODE | D185: /00
A186: 1 | C186: SAPMF05A | D186: 0300
A187: 2 | C187: BSEG-WRBTR | E187: M | F187: 金額
A188: 2 | C188: BSEG-DMBTR | E188: N | F188: 国内通貨額
A189: 2 | C189: BSEG-MWSKZ | E189: O | F189: 消費税コード
A190: 2 | C190: BSEG-VALUT | E190: U | F190: 起算日
A191: 2 | C191: BSEG-ZUONR | E191: S | F191: ソートキー
A192: 2 | C192: BSEG-SGTXT | E192: T | F192: 明細テキスト
A193: 2 | C193: BSEG-MENGE | E193: AC | F193: 数量
A194: 2 | C194: BSEG-MEINS | E194: AD | F194: 数量単位
A195: 2 | C195: BDC_OKCODE | D195: /00
A196: 1 | C196: SAPLKACB | D196: 0002
A197: 2 | C197: COBL-GSBER | E197: P | F197: 事業領域
A198: 2 | C198: COBL-KOSTL | E198: Q | F198: 原価センタ
A199: 2 | C199: COBL-PRCTR | E199: R | F199: 利益センタ
A200: 2 | C200: COBL-AUFNR | E200: AE | F200: 指図書
... 91 more rows

Sheet TBL (hidden)
A1: 勘定 | B1: 行 | D1: 転記ｷｰ | E1: ﾀｲﾌﾟ | F1: 特殊 | G1: 勘定(開始) | H1: 勘定(終了) | I1: ﾊﾟﾀｰﾝ | J1: 勘定名 | N1: 転記ｷｰ | O1: ﾀｲﾌﾟ | P1: 特殊 | Q1: 勘定(開始) | R1: 勘定(終了) | S1: ﾊﾟﾀｰﾝ | T1: 勘定名 | X1: 転記ｷｰ | Y1: ﾀｲﾌﾟ | Z1: 特殊 | AA1: 勘定(開始) | AB1: 勘定(終了) | AC1: ﾊﾟﾀｰﾝ | AD1: 勘定名 | AH1: 転記ｷｰ | AI1: ﾀｲﾌﾟ | AJ1: 特殊 | AK1: 勘定(開始) | AL1: 勘定(終了) | AM1: ﾊﾟﾀｰﾝ | AN1: 勘定名 | AR1: 転記ｷｰ | AS1: ﾀｲﾌﾟ | AT1: 特殊 | AU1: 勘定(開始) | AV1: 勘定(終了) | AW1: ﾊﾟﾀｰﾝ | AX1: 勘定名
A2: 1 | B2: 2 | C2: 19 | D2: 40/50 | E2: Ｓ | G2: 100010 | H2: 109999 | I2: P-01 | J2: 現金／預金 | N2: 09/19 | O2: Ｄ | P2: W | Q2: 112110 | R2: 112119 | S2: P-06 | T2: 受取手形 | X2: 29/39 | Y2: Ｋ | Z2: W | AA2: 411100 | AB2: 411100 | AC2: P-07 | AD2: 支払手形 | AH2: 21/31 | AI2: K | AK2: 412100 | AL2: 412109 | AM2: P-05 | AN2: 買掛金 | AR2: 01/11 | AS2: D | AU2: 113100 | AV2: 113199 | AW2: P-04 | AX2: 売掛金
A3: 2 | B3: 20 | C3: 24 | D3: 40/50 | E3: Ｓ | G3: 113999 | H3: 113999 | I3: P-01 | J3: 売掛金-調整 | N3: 09/19 | O3: Ｄ | P3: M | Q3: 145100 | R3: 145100 | S3: P-08 | T3: 未収入金 | X3: 29/39 | Y3: Ｋ | Z3: N | AA3: 414100 | AB3: 414100 | AC3: P-09 | AD3: 未払金 | AH3: 21/31 | AI3: K | AK3: 415100 | AL3: 415100 | AM3: P-09 | AN3: 未払費用 | AR3: 01/11 | AS3: D | AU3: 113200 | AV3: 113200 | AW3: P-04 | AX3: 社内売掛金
A4: 3 | B4: 25 | C4: 28 | D4: 40/50 | E4: Ｓ | G4: 114000 | H4: 116099 | I4: P-01 | J4: 有価証券／自己株式／預け金 | N4: 09/19 | O4: Ｄ | P4: X | Q4: 147101 | R4: 147101 | S4: P-08 | T4: 営業立替金 | X4: 29/39 | Y4: Ｋ | Z4: Q | AA4: 414300 | AB4: 414300 | AC4: P-09 | AD4: 未払金（有形固定資産） | AH4: eof | AR4: eof
A5: 4 | B5: 29 | C5: 39 | D5: 40/50 | E5: Ｓ | G5: 121100 | H5: 127900 | I5: P-03 | J5: 棚卸資産 | N5: 09/19 | O5: Ｄ | P5: R | Q5: 147105 | R5: 147105 | S5: P-08 | T5: 代理店勘定（債権) | X5: 29/39 | Y5: Ｋ | Z5: R | AA5: 414400 | AB5: 414400 | AC5: P-09 | AD5: 未払金（無形固定資産）
A6: 5 | B6: 40 | C6: 41 | D6: 40/50 | E6: Ｓ | G6: 135000 | H6: 140199 | I6: P-02 | J6: 未成工事 | N6: 09/19 | O6: Ｄ | P6: S | Q6: 147107 | R6: 147107 | S6: P-08 | T6: 海外代理店勘定(債権) | X6: 29/39 | Y6: Ｋ | Z6: K | AA6: 415100 | AB6: 415100 | AC6: P-09 | AD6: 未払費用
A7: 7 | B7: 42 | C7: 43 | D7: 40/50 | E7: Ｓ | G7: 141101 | H7: 141199 | I7: P-01 | J7: 前渡金 | N7: 09/19 | O7: Ｄ | P7: T | Q7: 147109 | R7: 147109 | S7: P-08 | T7: 関係会社立替金 | X7: 29/39 | Y7: Ｋ | Z7: U | AA7: 418305 | AB7: 418305 | AC7: P-09 | AD7: 代理店勘定預り金
A8: 8 | B8: 44 | C8: 51 | D8: 40/50 | E8: Ｓ | G8: 142101 | H8: 142199 | I8: P-01 | J8: 前払費用 | N8: 09/19 | O8: Ｄ | P8: Q | Q8: 411910 | R8: 411919 | S8: P-08 | T8: 割引手形 | X8: 29/39 | Y8: Ｋ | Z8: Y | AA8: 418307 | AB8: 418307 | AC8: P-09 | AD8: 海外代理店勘定（債務）
A9: 9 | B9: 52 | C9: 53 | D9: 40/50 | E9: Ｓ | G9: 144100 | H9: 144199 | I9: P-01 | J9: 短期貸付金 | N9: 09/19 | O9: Ｄ | P9: U | Q9: 411920 | R9: 411929 | S9: P-08 | T9: 譲渡手形 | X9: 29/39 | Y9: Ｋ | Z9: V | AA9: 441011 | AB9: 441011 | AC9: P-09 | AD9: 仮受金－運賃（特定）
A10: eof | D10: 40/50 | E10: Ｓ | G10: 145110 | H10: 145199 | I10: P-01 | J10: 未収入金 | N10: 09/19 | O10: Ｄ | P10: A | Q10: 416100 | R10: 416100 | S10: P-13 | T10: 前受金 | X10: eof
D11: 40/50 | E11: Ｓ | G11: 146100 | H11: 146199 | I11: P-01 | J11: 前渡金 | N11: 09/19 | O11: Ｄ | P11: C | Q11: 441000 | R11: 441000 | S11: P-13 | T11: 仮受金-仮受売掛
D12: 40/50 | E12: Ｓ | G12: 147100 | H12: 147199 | I12: P-01 | J12: 社内立替金 | N12: eof
D13: 40/50 | E13: Ｓ | G13: 147200 | H13: 147299 | I13: P-01 | J13: 関係会社立替金
D14: 40/50 | E14: Ｓ | G14: 148100 | H14: 148199 | I14: P-01 | J14: 仮払金
D15: 40/50 | E15: Ｓ | G15: 148200 | H15: 148209 | I15: P-12 | J15: 仮払消費税
D16: 40/50 | E16: Ｓ | G16: 148210 | H16: 148210 | I16: P-01 | J16: 輸入消費税
D17: 40/50 | E17: Ｓ | G17: 148220 | H17: 148399 | I17: P-01 | J17: 仮払法人税／仮払利子割
D18: 40/50 | E18: Ｓ | G18: 148500 | H18: 170999 | I18: P-01 | J18: 立替金／引当金等
D20: 40/50 | E20: Ｓ | G20: 227000 | H20: 241500 | I20: P-02 | J20: 建設仮勘定
D21: 40/50 | E21: Ｓ | G21: 261100 | H21: 262999 | I21: P-01 | J21: 投資有価証券／株式／出資金
D22: 40/50 | E22: Ｓ | G22: 263500 | H22: 271099 | I22: P-01 | J22: 長期貸付金(他）
D23: 40/50 | E23: Ｓ | G23: 281000 | H23: 292999 | I23: P-01 | J23: 長期前払費用／貸倒引当金
D25: 40/50 | E25: Ｓ | G25: 351000 | H25: 359999 | I25: P-02 | J25: 生産原価
D26: 40/50 | E26: Ｓ | G26: 361000 | H26: 361000 | I26: P-02 | J26: 仕入原価
D27: 40/50 | E27: Ｓ | G27: 372001 | H27: 386400 | I27: P-01 | J27: 事業部勘定勘定
D29: 40/50 | E29: Ｓ | G29: 412999 | H29: 412999 | I29: P-01 | J29: 買掛金-調整
D30: 40/50 | E30: Ｓ | G30: 413100 | H30: 413699 | I30: P-01 | J30: 短期/長期借入金
D31: 40/50 | E31: Ｓ | G31: 414101 | H31: 415299 | I31: P-01 | J31: 未払金
D32: 40/50 | E32: Ｓ | G32: 416199 | H32: 416199 | I32: P-01 | J32: 前受金-調整
D33: 40/50 | E33: Ｓ | G33: 417100 | H33: 418399 | I33: P-01 | J33: 諸預り金
D34: 40/50 | E34: Ｓ | G34: 422100 | H34: 422199 | I34: P-12 | J34: 仮受消費税
D35: 40/50 | E35: Ｓ | G35: 422300 | H35: 422599 | I35: P-01 | J35: その他流動負債
D36: 40/50 | E36: Ｓ | G36: 441001 | H36: 441099 | I36: P-01 | J36: 仮受金
D37: 40/50 | E37: Ｓ | G37: 462100 | H37: 462199 | I37: P-01 | J37: 原価仮勘定
D38: 40/50 | E38: Ｓ | G38: 499000 | H38: 499000 | I38: P-01 | J38: 在庫初期化
D40: 40/50 | E40: Ｓ | G40: 510000 | H40: 599999 | I40: P-01 | J40: 長期借入金・引当金関係
D42: 40/50 | E42: Ｓ | G42: 700000 | H42: 7999999 | I42: P-01 | J42: 資本金
D44: 40/50 | E44: Ｓ | G44: 811100 | H44: 812999 | I44: P-11 | J44: 売上
D45: 40/50 | E45: Ｓ | G45: 820000 | H45: 823999 | I45: P-01 | J45: 原価
D46: 40/50 | E46: Ｓ | G46: 824100 | H46: 827999 | I46: P-02 | J46: 一般管理費
D47: 40/50 | E47: Ｓ | G47: 861000 | H47: 878399 | I47: P-10 | J47: 受取利息／営業収益／特別利益
D48: 40/50 | E48: Ｓ | G48: 881000 | H48: 882999 | I48: P-02 | J48: 支払利息／借入金利息／社債利息
D49: 40/50 | E49: Ｓ | G49: 883400 | H49: 883599 | I49: P-02 | J49: 原価差額
D50: 40/50 | E50: Ｓ | G50: 884000 | H50: 886999 | I50: P-02 | J50: 営業外費用／特別損失
D52: 40/50 | E52: Ｓ | G52: 980000 | H52: 9999999 | I52: P-01 | J52: 税その他
D54: eof
D55: ※タイプ(勘定ﾀｲﾌﾟ）・・・Ｓ：勘定コード，Ｄ：得意先コード，Ｋ：仕入先コード
A57: 勘定：勘定の最初の一桁
A58: 行：開始行

Sheet 入力 (hidden)
B5: セル | C5: 項 目 名 称 | D5: 分 類 | E5: 項 目 名 | G5: 備 考
B6: Ａ列 | C6: 伝票日付 | D6: ヘッダ部 | E6: BLDAT
B7: Ｂ列 | C7: 会社コード | E7: BUKRS
B8: Ｃ列 | C8: 転記日付 | E8: BUDAT
B9: Ｄ列 | C9: 伝票タイプ | E9: BLART
B10: Ｅ列 | C10: 通貨コード | E10: WAERS
B11: Ｆ列 | C11: 換算レート | E11: KURSF
B12: Ｇ列 | C12: 参照伝票番号 | E12: XBLNR
B13: Ｈ列 | C13: ヘッダテキスト | E13: BKTXT
B14: Ｉ列 | C14: 税自動計算 | E14: XMWST
B15: Ｊ列 | C15: 転記キー | D15: 明細部 | E15: NEWBS
B16: Ｋ列 | C16: 勘定 | E16: NEWKO
B17: Ｌ列 | C17: 特殊Ｇ／Ｌ | E17: NEWUM
B18: Ｍ列 | C18: 金額 | E18: WRBTR
B19: Ｎ列 | C19: 国内通貨額 | E19: DMBTR
B20: Ｏ列 | C20: 消費税コード | E20: MWSKZ
B21: Ｐ列 | C21: ソートキー | E21: ZUONR
B22: Ｑ列 | C22: 明細テキスト | E22: SGTXT
B23: Ｒ列 | C23: 起算日 | E23: VALUT
B24: Ｓ列 | C24: 期日 | E24: ZFBDT
B25: Ｔ列 | C25: 振出日 | E25: WDATE
B26: Ｕ列 | C26: 支払方法 | E26: ZLSCH
B27: Ｖ列 | C27: 支払保留 | E27: ZLSPR
B28: Ｗ列 | C28: 取引先銀行 | E28: BVTYP
B29: Ｘ列 | C29: 取引銀行 | E29: HBKID
B30: Ｙ列 | C30: 中央銀行コード | E30: LZBKZ
B31: Ｚ列 | C31: 数量 | E31: MENGE
B32: AA列 | C32: 数量単位 | E32: MEINS
B33: AB列 | C33: 事業領域 | E33: GSBER
B34: AC列 | C34: 原価センタ | E34: KOSTL
B35: AD列 | C35: 利益センタ | E35: PRCTR
B36: AE列 | C36: 指図書 | E36: AUFNR
B37: AF列 | C37: ＷＢＳ | E37: PS_PSP_PNR
B38: AG列 | C38: 得意先コード | E38: RKEAK-FIELD1
B39: AH列 | C39: 品目コード | E39: RKEAK-FIELD2
B40: AI列 | C40: 販売組織 | E40: RKEAK-FIELD6
B41: AJ列 | C41: 流通チャネル | E41: RKEAK-FIELD7
B42: AK列 | C42: 製品部門 | E42: RKEAK-FIELD8
B43: AL列 | C43: 品目ｸﾞﾙｰﾌﾟ | E43: RKEAK-FIELD9
B44: AM列 | C44: 営業所 | E44: RKEAK-FIELD2
B45: AN列 | C45: 営業グループ | E45: RKEAK-FIELD3
B46: AO列 | C46: 需要家 | E46: RKEAK-FIELD2
